{"text_format":"3","workbook":"xlsx","n_sheets":4,"sheets":["Śledzenie ocen","Twój wynik","Ustawienia","Obliczenia"],"not_rendered":{"defined_names":3,"comments":1},"read":"whole","date_system":"1900"}

{"sheet":"Śledzenie ocen","index":0,"n_rows":14,"n_cols":6,"rows_kept":14}
[null,"Tutaj wpisz liczby punktów"]
[]
[null,null,"Zajęcia","Typ","Opis","Punkty"]
[null,null,"Współczesny język francuski","Prace domowe","Historia II Wojny Światowej",{"v":0.8,"d":"80%"}]
[null,null,"Zaawansowane programowanie w języku Java","Egzamin śródsemestralny",null,{"v":0.75,"d":"75%"}]
[null,null,"Hiszpański","Prace domowe",null,{"v":0.5,"d":"50%"}]
[null,null,"Fizyka teoretyczna","Prace domowe",null,{"v":0.95,"d":"95%"}]
[null,null,"Współczesny język francuski","Prace domowe","Historia I Wojny Światowej",{"v":0.9,"d":"90%"}]
[null,null,"Współczesny język francuski","Prace domowe","Strony 30–41",{"v":0.8,"d":"80%"}]
[null,null,"Wypracowania","Esej","Tekst na temat perswazji",{"v":0.95,"d":"95%"}]
[null,null,"Matematyka 1","Prace domowe","Strony 21 i 26",{"v":0.8,"d":"80%"}]
[null,null,"Matematyka 2","Prace domowe","Strony 15 i 18",{"v":0.85,"d":"85%"}]
[null,null,"Matematyka 1","Prace domowe","Strony 34–36",{"v":0.8,"d":"80%"}]
[null,null,"Matematyka 2","Test",null,{"v":0.95,"d":"95%"}]

{"sheet":"Twój wynik","index":1,"n_rows":31,"n_cols":8,"rows_kept":31}
[null,"Twój wynik"]
[]
[null,null,"Sumy"]
[null,null,{"$f":"\"Godziny: \"&SUM(tblZajęcia[Liczba punktowanych godzin])","v":"Godziny: 24"},{"$f":"AVERAGE(D7:D31)","v":{"v":0.8104761904761906,"d":"81%"}},{"$f":"AVERAGE(E7:E31)","v":{"v":2.7142857142857144,"d":"2.71"}},{"$f":"SUM(F7:F31)","v":{"v":2.625,"d":"2.63"}},{"$f":"IFERROR(HLOOKUP(D4,lst_Przeliczenie_na_średnią_ocen,2),\"\")","v":"B-"}]
[]
[null,null,"Zajęcia","Procent","Średnia ocen","Średnia ważona ocen","Stopień","Ogólny wynik"]
[null,null,{"$f":"Obliczenia!C6","v":"Współczesny język francuski"},{"$f":"Obliczenia!AL6","v":{"v":0.8333333333333334,"d":"83%"}},{"$f":"Obliczenia!AM6","v":{"v":3,"d":"3.00"}},{"$f":"IFERROR(E7*Ustawienia!D9/SUM(tblZajęcia[Liczba punktowanych godzin]),\"\")","v":{"v":0.375,"d":"0.38"}},{"$f":"Obliczenia!AN6","v":"B"}]
[null,null,{"$f":"Obliczenia!C7","v":"Fizyka teoretyczna"},{"$f":"Obliczenia!AL7","v":{"v":0.95,"d":"95%"}},{"$f":"Obliczenia!AM7","v":{"v":4,"d":"4.00"}},{"$f":"IFERROR(E8*Ustawienia!D10/SUM(tblZajęcia[Liczba punktowanych godzin]),\"\")","v":{"v":0.5,"d":"0.50"}},{"$f":"Obliczenia!AN7","v":"A"}]
[null,null,{"$f":"Obliczenia!C8","v":"Matematyka 1"},{"$f":"Obliczenia!AL8","v":{"v":0.8000000000000002,"d":"80%"}},{"$f":"Obliczenia!AM8","v":2.67},{"$f":"IFERROR(E9*Ustawienia!D11/SUM(tblZajęcia[Liczba punktowanych godzin]),\"\")","v":{"v":0.445,"d":"0.45"}},{"$f":"Obliczenia!AN8","v":"B-"}]
[null,null,{"$f":"Obliczenia!C9","v":"Matematyka 2"},{"$f":"Obliczenia!AL9","v":{"v":0.89,"d":"89%"}},{"$f":"Obliczenia!AM9","v":3.33},{"$f":"IFERROR(E10*Ustawienia!D12/SUM(tblZajęcia[Liczba punktowanych godzin]),\"\")","v":{"v":0.555,"d":"0.56"}},{"$f":"Obliczenia!AN9","v":"B+"}]
[null,null,{"$f":"Obliczenia!C10","v":"Zaawansowane programowanie w języku Java"},{"$f":"Obliczenia!AL10","v":{"v":0.7500000000000001,"d":"75%"}},{"$f":"Obliczenia!AM10","v":{"v":2,"d":"2.00"}},{"$f":"IFERROR(E11*Ustawienia!D13/SUM(tblZajęcia[Liczba punktowanych godzin]),\"\")","v":{"v":0.4166666666666667,"d":"0.42"}},{"$f":"Obliczenia!AN10","v":"C"}]
[null,null,{"$f":"Obliczenia!C11","v":"Hiszpański"},{"$f":"Obliczenia!AL11","v":{"v":0.5,"d":"50%"}},{"$f":"Obliczenia!AM11","v":{"v":0,"d":"0.00"}},{"$f":"IFERROR(E12*Ustawienia!D14/SUM(tblZajęcia[Liczba punktowanych godzin]),\"\")","v":{"v":0,"d":"0.00"}},{"$f":"Obliczenia!AN11","v":"F"}]
[null,null,{"$f":"Obliczenia!C12","v":"Wypracowania"},{"$f":"Obliczenia!AL12","v":{"v":0.95,"d":"95%"}},{"$f":"Obliczenia!AM12","v":{"v":4,"d":"4.00"}},{"$f":"IFERROR(E13*Ustawienia!D15/SUM(tblZajęcia[Liczba punktowanych godzin]),\"\")","v":{"v":0.3333333333333333,"d":"0.33"}},{"$f":"Obliczenia!AN12","v":"A"}]
[null,null,{"$f":"Obliczenia!C13","v":""},{"$f":"Obliczenia!AL13","v":""},{"$f":"Obliczenia!AM13","v":""},{"$f":"IFERROR(E14*Ustawienia!D16/SUM(tblZajęcia[Liczba punktowanych godzin]),\"\")","v":""},{"$f":"Obliczenia!AN13","v":""}]
[null,null,{"$f":"Obliczenia!C14","v":""},{"$f":"Obliczenia!AL14","v":""},{"$f":"Obliczenia!AM14","v":""},{"$f":"IFERROR(E15*Ustawienia!D17/SUM(tblZajęcia[Liczba punktowanych godzin]),\"\")","v":""},{"$f":"Obliczenia!AN14","v":""}]
[null,null,{"$f":"Obliczenia!C15","v":""},{"$f":"Obliczenia!AL15","v":""},{"$f":"Obliczenia!AM15","v":""},{"$f":"IFERROR(E16*Ustawienia!D18/SUM(tblZajęcia[Liczba punktowanych godzin]),\"\")","v":""},{"$f":"Obliczenia!AN15","v":""}]
[null,null,{"$f":"Obliczenia!C16","v":""},{"$f":"Obliczenia!AL16","v":""},{"$f":"Obliczenia!AM16","v":""},{"$f":"IFERROR(E17*Ustawienia!D19/SUM(tblZajęcia[Liczba punktowanych godzin]),\"\")","v":""},{"$f":"Obliczenia!AN16","v":""}]
[null,null,{"$f":"Obliczenia!C17","v":""},{"$f":"Obliczenia!AL17","v":""},{"$f":"Obliczenia!AM17","v":""},{"$f":"IFERROR(E18*Ustawienia!D20/SUM(tblZajęcia[Liczba punktowanych godzin]),\"\")","v":""},{"$f":"Obliczenia!AN17","v":""}]
[null,null,{"$f":"Obliczenia!C18","v":""},{"$f":"Obliczenia!AL18","v":""},{"$f":"Obliczenia!AM18","v":""},{"$f":"IFERROR(E19*Ustawienia!D21/SUM(tblZajęcia[Liczba punktowanych godzin]),\"\")","v":""},{"$f":"Obliczenia!AN18","v":""}]
[null,null,{"$f":"Obliczenia!C19","v":""},{"$f":"Obliczenia!AL19","v":""},{"$f":"Obliczenia!AM19","v":""},{"$f":"IFERROR(E20*Ustawienia!D22/SUM(tblZajęcia[Liczba punktowanych godzin]),\"\")","v":""},{"$f":"Obliczenia!AN19","v":""}]
[null,null,{"$f":"Obliczenia!C20","v":""},{"$f":"Obliczenia!AL20","v":""},{"$f":"Obliczenia!AM20","v":""},{"$f":"IFERROR(E21*Ustawienia!D23/SUM(tblZajęcia[Liczba punktowanych godzin]),\"\")","v":""},{"$f":"Obliczenia!AN20","v":""}]
[null,null,{"$f":"Obliczenia!C21","v":""},{"$f":"Obliczenia!AL21","v":""},{"$f":"Obliczenia!AM21","v":""},{"$f":"IFERROR(E22*Ustawienia!D24/SUM(tblZajęcia[Liczba punktowanych godzin]),\"\")","v":""},{"$f":"Obliczenia!AN21","v":""}]
[null,null,{"$f":"Obliczenia!C22","v":""},{"$f":"Obliczenia!AL22","v":""},{"$f":"Obliczenia!AM22","v":""},{"$f":"IFERROR(E23*Ustawienia!D25/SUM(tblZajęcia[Liczba punktowanych godzin]),\"\")","v":""},{"$f":"Obliczenia!AN22","v":""}]
[null,null,{"$f":"Obliczenia!C23","v":""},{"$f":"Obliczenia!AL23","v":""},{"$f":"Obliczenia!AM23","v":""},{"$f":"IFERROR(E24*Ustawienia!D26/SUM(tblZajęcia[Liczba punktowanych godzin]),\"\")","v":""},{"$f":"Obliczenia!AN23","v":""}]
[null,null,{"$f":"Obliczenia!C24","v":""},{"$f":"Obliczenia!AL24","v":""},{"$f":"Obliczenia!AM24","v":""},{"$f":"IFERROR(E25*Ustawienia!D27/SUM(tblZajęcia[Liczba punktowanych godzin]),\"\")","v":""},{"$f":"Obliczenia!AN24","v":""}]
[null,null,{"$f":"Obliczenia!C25","v":""},{"$f":"Obliczenia!AL25","v":""},{"$f":"Obliczenia!AM25","v":""},{"$f":"IFERROR(E26*Ustawienia!D28/SUM(tblZajęcia[Liczba punktowanych godzin]),\"\")","v":""},{"$f":"Obliczenia!AN25","v":""}]
[null,null,{"$f":"Obliczenia!C26","v":""},{"$f":"Obliczenia!AL26","v":""},{"$f":"Obliczenia!AM26","v":""},{"$f":"IFERROR(E27*Ustawienia!D29/SUM(tblZajęcia[Liczba punktowanych godzin]),\"\")","v":""},{"$f":"Obliczenia!AN26","v":""}]
[null,null,{"$f":"Obliczenia!C27","v":""},{"$f":"Obliczenia!AL27","v":""},{"$f":"Obliczenia!AM27","v":""},{"$f":"IFERROR(E28*Ustawienia!D30/SUM(tblZajęcia[Liczba punktowanych godzin]),\"\")","v":""},{"$f":"Obliczenia!AN27","v":""}]
[null,null,{"$f":"Obliczenia!C28","v":""},{"$f":"Obliczenia!AL28","v":""},{"$f":"Obliczenia!AM28","v":""},{"$f":"IFERROR(E29*Ustawienia!D31/SUM(tblZajęcia[Liczba punktowanych godzin]),\"\")","v":""},{"$f":"Obliczenia!AN28","v":""}]
[null,null,{"$f":"Obliczenia!C29","v":""},{"$f":"Obliczenia!AL29","v":""},{"$f":"Obliczenia!AM29","v":""},{"$f":"IFERROR(E30*Ustawienia!D32/SUM(tblZajęcia[Liczba punktowanych godzin]),\"\")","v":""},{"$f":"Obliczenia!AN29","v":""}]
[null,null,{"$f":"Obliczenia!C30","v":""},{"$f":"Obliczenia!AL30","v":""},{"$f":"Obliczenia!AM30","v":""},{"$f":"IFERROR(E31*Ustawienia!D33/SUM(tblZajęcia[Liczba punktowanych godzin]),\"\")","v":""},{"$f":"Obliczenia!AN30","v":""}]

{"sheet":"Ustawienia","index":2,"n_rows":15,"n_cols":16,"rows_kept":15,"merged":[[5,2,5,15]]}
[null,"Ustawienia"]
[null,null,"Punktacja i przeliczenie na średnią ocen"]
[null,null,"Wartość procentowa",{"v":0,"d":"0%"},{"v":0.6,"d":"60%"},{"v":0.63,"d":"63%"},{"v":0.67,"d":"67%"},{"v":0.7,"d":"70%"},{"v":0.73,"d":"73%"},{"v":0.77,"d":"77%"},{"v":0.8,"d":"80%"},{"v":0.83,"d":"83%"},{"v":0.87,"d":"87%"},{"v":0.9,"d":"90%"},{"v":0.93,"d":"93%"},{"v":0.97,"d":"97%"}]
[null,null,"Stopień","F","D-","D","D+","C-","C","C+","B-","B","B+","A-","A","A+"]
[null,null,"Średnia ocen",0,0.67,1,1.33,1.67,2,2.33,2.67,3,3.33,3.67,4,4]
[]
[null,null,"Ważona punktacja dla maksymalnie 25 zajęć"]
[null,null,"Zajęcia, w których uczestniczysz","Liczba punktowanych godzin","Prace domowe","Esej","Test","Projekt","Egzamin śródsemestralny","Egzamin końcowy","Inne","Suma (procent)"]
[null,null,"Współczesny język francuski",{"v":3,"d":"3.0"},{"v":0.1,"d":"10%"},{"v":0.15,"d":"15%"},{"v":0.15,"d":"15%"},{"v":0.1,"d":"10%"},{"v":0.2,"d":"20%"},{"v":0.3,"d":"30%"},null,{"$f":"SUM(tblZajęcia[[#This Row],[Prace domowe]:[Inne]])","v":{"v":1,"d":"100%"}}]
[null,null,"Fizyka teoretyczna",{"v":3,"d":"3.0"},{"v":0.15,"d":"15%"},{"v":0.15,"d":"15%"},{"v":0.1,"d":"10%"},{"v":0.1,"d":"10%"},{"v":0.15,"d":"15%"},{"v":0.3,"d":"30%"},{"v":0.05,"d":"5%"},{"$f":"SUM(tblZajęcia[[#This Row],[Prace domowe]:[Inne]])","v":{"v":1,"d":"100%"}}]
[null,null,"Matematyka 1",{"v":4,"d":"4.0"},{"v":0.1,"d":"10%"},{"v":0.15,"d":"15%"},{"v":0.15,"d":"15%"},{"v":0.1,"d":"10%"},{"v":0.2,"d":"20%"},{"v":0.3,"d":"30%"},null,{"$f":"SUM(tblZajęcia[[#This Row],[Prace domowe]:[Inne]])","v":{"v":1,"d":"100%"}}]
[null,null,"Matematyka 2",{"v":4,"d":"4.0"},{"v":0.15,"d":"15%"},{"v":0.15,"d":"15%"},{"v":0.1,"d":"10%"},{"v":0.1,"d":"10%"},{"v":0.15,"d":"15%"},{"v":0.3,"d":"30%"},{"v":0.05,"d":"5%"},{"$f":"SUM(tblZajęcia[[#This Row],[Prace domowe]:[Inne]])","v":{"v":1,"d":"100%"}}]
[null,null,"Zaawansowane programowanie w języku Java",{"v":5,"d":"5.0"},{"v":0.15,"d":"15%"},{"v":0.15,"d":"15%"},{"v":0.1,"d":"10%"},{"v":0.1,"d":"10%"},{"v":0.2,"d":"20%"},{"v":0.3,"d":"30%"},null,{"$f":"SUM(tblZajęcia[[#This Row],[Prace domowe]:[Inne]])","v":{"v":1,"d":"100%"}}]
[null,null,"Hiszpański",{"v":3,"d":"3.0"},{"v":0.1,"d":"10%"},{"v":0.15,"d":"15%"},{"v":0.17,"d":"17%"},{"v":0.13,"d":"13%"},{"v":0.2,"d":"20%"},{"v":0.2,"d":"20%"},{"v":0.05,"d":"5%"},{"$f":"SUM(tblZajęcia[[#This Row],[Prace domowe]:[Inne]])","v":{"v":1,"d":"100%"}}]
[null,null,"Wypracowania",{"v":2,"d":"2.0"},{"v":0.15,"d":"15%"},{"v":0.15,"d":"15%"},{"v":0.12,"d":"12%"},{"v":0.15,"d":"15%"},{"v":0.15,"d":"15%"},{"v":0.25,"d":"25%"},{"v":0.03,"d":"3%"},{"$f":"SUM(tblZajęcia[[#This Row],[Prace domowe]:[Inne]])","v":{"v":1,"d":"100%"}}]

{"sheet":"Obliczenia","index":3,"n_rows":657,"n_cols":40,"rows_kept":657,"hidden":true}
[null,"Obliczenia"]
[null,null,"Ten arkusz zawiera obliczenia ocen i średniej ocen. Powinien być ukryty. Wszelkie modyfikacje tego arkusza mogą spowodować błędy."]
[]
[null,null,"Lista bieżących zajęć","Punkty (wartość maksymalna: 1)",{"$nulls":24},"Obliczenia ocen"]
[null,null,"Zajęcia",1,2,3,4,5,6,7,8,9,10,11,12,13,14,15,16,17,18,19,20,21,22,23,24,25,{"$f":"tblZajęcia[[#Headers],[Prace domowe]]","v":"Prace domowe"},{"$f":"tblZajęcia[[#Headers],[Esej]]","v":"Esej"},{"$f":"tblZajęcia[[#Headers],[Test]]","v":"Test"},{"$f":"tblZajęcia[[#Headers],[Projekt]]","v":"Projekt"},{"$f":"tblZajęcia[[#Headers],[Egzamin śródsemestralny]]","v":"Egzamin śródsemestralny"},{"$f":"tblZajęcia[[#Headers],[Egzamin końcowy]]","v":"Egzamin końcowy"},{"$f":"tblZajęcia[[#Headers],[Inne]]","v":"Inne"},"Suma","Łączna liczba punktów do zdobycia","Suma (procent)","Ocena punktowa","Stopień"]
[null,null,{"$f":"IF(Ustawienia!C9=\"\",\"\",Ustawienia!C9)","v":"Współczesny język francuski"},{"$f":"IFERROR(INDEX(tbl_Oceny_z_zajęć[],MATCH($C6:$C30&D$5:AB$5,Obliczenia!$C$33:$C$657,0),4),\"\")","v":{"v":0.8,"d":"80%"}},{"v":0.9,"d":"90%"},{"v":0.8,"d":"80%"},"","","","","","","","","","","","","","","","","","","","","","",{"$f":"IFERROR(AVERAGEIFS(tbl_Oceny_z_zajęć[Punkty],tbl_Oceny_z_zajęć[Zajęcia],Obliczenia!$C6,tbl_Oceny_z_zajęć[Typ],Obliczenia!AC$5)*Ustawienia!E9,\"\")","v":0.08333333333333334},{"$f":"IFERROR(AVERAGEIFS(tbl_Oceny_z_zajęć[Punkty],tbl_Oceny_z_zajęć[Zajęcia],Obliczenia!$C6,tbl_Oceny_z_zajęć[Typ],Obliczenia!AD$5)*Ustawienia!F9,\"\")","v":""},{"$f":"IFERROR(AVERAGEIFS(tbl_Oceny_z_zajęć[Punkty],tbl_Oceny_z_zajęć[Zajęcia],Obliczenia!$C6,tbl_Oceny_z_zajęć[Typ],Obliczenia!AE$5)*Ustawienia!G9,\"\")","v":""},{"$f":"IFERROR(AVERAGEIFS(tbl_Oceny_z_zajęć[Punkty],tbl_Oceny_z_zajęć[Zajęcia],Obliczenia!$C6,tbl_Oceny_z_zajęć[Typ],Obliczenia!AF$5)*Ustawienia!H9,\"\")","v":""},{"$f":"IFERROR(AVERAGEIFS(tbl_Oceny_z_zajęć[Punkty],tbl_Oceny_z_zajęć[Zajęcia],Obliczenia!$C6,tbl_Oceny_z_zajęć[Typ],Obliczenia!AG$5)*Ustawienia!I9,\"\")","v":""},{"$f":"IFERROR(AVERAGEIFS(tbl_Oceny_z_zajęć[Punkty],tbl_Oceny_z_zajęć[Zajęcia],Obliczenia!$C6,tbl_Oceny_z_zajęć[Typ],Obliczenia!AH$5)*Ustawienia!J9,\"\")","v":""},{"$f":"IFERROR(AVERAGEIFS(tbl_Oceny_z_zajęć[Punkty],tbl_Oceny_z_zajęć[Zajęcia],Obliczenia!$C6,tbl_Oceny_z_zajęć[Typ],Obliczenia!AI$5)*Ustawienia!K9,\"\")","v":""},{"$f":"SUM(AC6:AI6)","v":0.08333333333333334},{"$f":"SUMIFS(Ustawienia!E9:K9,Obliczenia!AC6:AI6,\">0\")","v":0.1},{"$f":"IFERROR(AJ6/AK6,\"\")","v":{"v":0.8333333333333334,"d":"83%"}},{"$f":"IFERROR(HLOOKUP(AL6,lst_Przeliczenie_na_średnią_ocen,3),\"\")","v":3},{"$f":"IFERROR(HLOOKUP(AL6,lst_Przeliczenie_na_średnią_ocen,2),\"\")","v":"B"}]
[null,null,{"$f":"IF(Ustawienia!C10=\"\",\"\",Ustawienia!C10)","v":"Fizyka teoretyczna"},{"v":0.95,"d":"95%"},"","","","","","","","","","","","","","","","","","","","","","","","",{"$f":"IFERROR(AVERAGEIFS(tbl_Oceny_z_zajęć[Punkty],tbl_Oceny_z_zajęć[Zajęcia],Obliczenia!$C7,tbl_Oceny_z_zajęć[Typ],Obliczenia!AC$5)*Ustawienia!E10,\"\")","v":0.1425},{"$f":"IFERROR(AVERAGEIFS(tbl_Oceny_z_zajęć[Punkty],tbl_Oceny_z_zajęć[Zajęcia],Obliczenia!$C7,tbl_Oceny_z_zajęć[Typ],Obliczenia!AD$5)*Ustawienia!F10,\"\")","v":""},{"$f":"IFERROR(AVERAGEIFS(tbl_Oceny_z_zajęć[Punkty],tbl_Oceny_z_zajęć[Zajęcia],Obliczenia!$C7,tbl_Oceny_z_zajęć[Typ],Obliczenia!AE$5)*Ustawienia!G10,\"\")","v":""},{"$f":"IFERROR(AVERAGEIFS(tbl_Oceny_z_zajęć[Punkty],tbl_Oceny_z_zajęć[Zajęcia],Obliczenia!$C7,tbl_Oceny_z_zajęć[Typ],Obliczenia!AF$5)*Ustawienia!H10,\"\")","v":""},{"$f":"IFERROR(AVERAGEIFS(tbl_Oceny_z_zajęć[Punkty],tbl_Oceny_z_zajęć[Zajęcia],Obliczenia!$C7,tbl_Oceny_z_zajęć[Typ],Obliczenia!AG$5)*Ustawienia!I10,\"\")","v":""},{"$f":"IFERROR(AVERAGEIFS(tbl_Oceny_z_zajęć[Punkty],tbl_Oceny_z_zajęć[Zajęcia],Obliczenia!$C7,tbl_Oceny_z_zajęć[Typ],Obliczenia!AH$5)*Ustawienia!J10,\"\")","v":""},{"$f":"IFERROR(AVERAGEIFS(tbl_Oceny_z_zajęć[Punkty],tbl_Oceny_z_zajęć[Zajęcia],Obliczenia!$C7,tbl_Oceny_z_zajęć[Typ],Obliczenia!AI$5)*Ustawienia!K10,\"\")","v":""},{"$f":"SUM(AC7:AI7)","v":0.1425},{"$f":"SUMIFS(Ustawienia!E10:K10,Obliczenia!AC7:AI7,\">0\")","v":0.15},{"$f":"IFERROR(AJ7/AK7,\"\")","v":{"v":0.95,"d":"95%"}},4,"A"]
[null,null,{"$f":"IF(Ustawienia!C11=\"\",\"\",Ustawienia!C11)","v":"Matematyka 1"},{"v":0.8,"d":"80%"},{"v":0.8,"d":"80%"},"","","","","","","","","","","","","","","","","","","","","","","",{"$f":"IFERROR(AVERAGEIFS(tbl_Oceny_z_zajęć[Punkty],tbl_Oceny_z_zajęć[Zajęcia],Obliczenia!$C8,tbl_Oceny_z_zajęć[Typ],Obliczenia!AC$5)*Ustawienia!E11,\"\")","v":0.08000000000000002},{"$f":"IFERROR(AVERAGEIFS(tbl_Oceny_z_zajęć[Punkty],tbl_Oceny_z_zajęć[Zajęcia],Obliczenia!$C8,tbl_Oceny_z_zajęć[Typ],Obliczenia!AD$5)*Ustawienia!F11,\"\")","v":""},{"$f":"IFERROR(AVERAGEIFS(tbl_Oceny_z_zajęć[Punkty],tbl_Oceny_z_zajęć[Zajęcia],Obliczenia!$C8,tbl_Oceny_z_zajęć[Typ],Obliczenia!AE$5)*Ustawienia!G11,\"\")","v":""},{"$f":"IFERROR(AVERAGEIFS(tbl_Oceny_z_zajęć[Punkty],tbl_Oceny_z_zajęć[Zajęcia],Obliczenia!$C8,tbl_Oceny_z_zajęć[Typ],Obliczenia!AF$5)*Ustawienia!H11,\"\")","v":""},{"$f":"IFERROR(AVERAGEIFS(tbl_Oceny_z_zajęć[Punkty],tbl_Oceny_z_zajęć[Zajęcia],Obliczenia!$C8,tbl_Oceny_z_zajęć[Typ],Obliczenia!AG$5)*Ustawienia!I11,\"\")","v":""},{"$f":"IFERROR(AVERAGEIFS(tbl_Oceny_z_zajęć[Punkty],tbl_Oceny_z_zajęć[Zajęcia],Obliczenia!$C8,tbl_Oceny_z_zajęć[Typ],Obliczenia!AH$5)*Ustawienia!J11,\"\")","v":""},{"$f":"IFERROR(AVERAGEIFS(tbl_Oceny_z_zajęć[Punkty],tbl_Oceny_z_zajęć[Zajęcia],Obliczenia!$C8,tbl_Oceny_z_zajęć[Typ],Obliczenia!AI$5)*Ustawienia!K11,\"\")","v":""},0.08000000000000002,{"$f":"SUMIFS(Ustawienia!E11:K11,Obliczenia!AC8:AI8,\">0\")","v":0.1},{"v":0.8000000000000002,"d":"80%"},2.67,"B-"]
[null,null,{"$f":"IF(Ustawienia!C12=\"\",\"\",Ustawienia!C12)","v":"Matematyka 2"},{"v":0.85,"d":"85%"},{"v":0.95,"d":"95%"},"","","","","","","","","","","","","","","","","","","","","","","",{"$f":"IFERROR(AVERAGEIFS(tbl_Oceny_z_zajęć[Punkty],tbl_Oceny_z_zajęć[Zajęcia],Obliczenia!$C9,tbl_Oceny_z_zajęć[Typ],Obliczenia!AC$5)*Ustawienia!E12,\"\")","v":0.1275},{"$f":"IFERROR(AVERAGEIFS(tbl_Oceny_z_zajęć[Punkty],tbl_Oceny_z_zajęć[Zajęcia],Obliczenia!$C9,tbl_Oceny_z_zajęć[Typ],Obliczenia!AD$5)*Ustawienia!F12,\"\")","v":""},{"$f":"IFERROR(AVERAGEIFS(tbl_Oceny_z_zajęć[Punkty],tbl_Oceny_z_zajęć[Zajęcia],Obliczenia!$C9,tbl_Oceny_z_zajęć[Typ],Obliczenia!AE$5)*Ustawienia!G12,\"\")","v":0.095},{"$f":"IFERROR(AVERAGEIFS(tbl_Oceny_z_zajęć[Punkty],tbl_Oceny_z_zajęć[Zajęcia],Obliczenia!$C9,tbl_Oceny_z_zajęć[Typ],Obliczenia!AF$5)*Ustawienia!H12,\"\")","v":""},{"$f":"IFERROR(AVERAGEIFS(tbl_Oceny_z_zajęć[Punkty],tbl_Oceny_z_zajęć[Zajęcia],Obliczenia!$C9,tbl_Oceny_z_zajęć[Typ],Obliczenia!AG$5)*Ustawienia!I12,\"\")","v":""},{"$f":"IFERROR(AVERAGEIFS(tbl_Oceny_z_zajęć[Punkty],tbl_Oceny_z_zajęć[Zajęcia],Obliczenia!$C9,tbl_Oceny_z_zajęć[Typ],Obliczenia!AH$5)*Ustawienia!J12,\"\")","v":""},{"$f":"IFERROR(AVERAGEIFS(tbl_Oceny_z_zajęć[Punkty],tbl_Oceny_z_zajęć[Zajęcia],Obliczenia!$C9,tbl_Oceny_z_zajęć[Typ],Obliczenia!AI$5)*Ustawienia!K12,\"\")","v":""},0.2225,{"$f":"SUMIFS(Ustawienia!E12:K12,Obliczenia!AC9:AI9,\">0\")","v":0.25},{"v":0.89,"d":"89%"},3.33,"B+"]
[null,null,{"$f":"IF(Ustawienia!C13=\"\",\"\",Ustawienia!C13)","v":"Zaawansowane programowanie w języku Java"},{"v":0.75,"d":"75%"},"","","","","","","","","","","","","","","","","","","","","","","","",{"$f":"IFERROR(AVERAGEIFS(tbl_Oceny_z_zajęć[Punkty],tbl_Oceny_z_zajęć[Zajęcia],Obliczenia!$C10,tbl_Oceny_z_zajęć[Typ],Obliczenia!AC$5)*Ustawienia!E13,\"\")","v":""},{"$f":"IFERROR(AVERAGEIFS(tbl_Oceny_z_zajęć[Punkty],tbl_Oceny_z_zajęć[Zajęcia],Obliczenia!$C10,tbl_Oceny_z_zajęć[Typ],Obliczenia!AD$5)*Ustawienia!F13,\"\")","v":""},{"$f":"IFERROR(AVERAGEIFS(tbl_Oceny_z_zajęć[Punkty],tbl_Oceny_z_zajęć[Zajęcia],Obliczenia!$C10,tbl_Oceny_z_zajęć[Typ],Obliczenia!AE$5)*Ustawienia!G13,\"\")","v":""},{"$f":"IFERROR(AVERAGEIFS(tbl_Oceny_z_zajęć[Punkty],tbl_Oceny_z_zajęć[Zajęcia],Obliczenia!$C10,tbl_Oceny_z_zajęć[Typ],Obliczenia!AF$5)*Ustawienia!H13,\"\")","v":""},{"$f":"IFERROR(AVERAGEIFS(tbl_Oceny_z_zajęć[Punkty],tbl_Oceny_z_zajęć[Zajęcia],Obliczenia!$C10,tbl_Oceny_z_zajęć[Typ],Obliczenia!AG$5)*Ustawienia!I13,\"\")","v":0.15000000000000002},{"$f":"IFERROR(AVERAGEIFS(tbl_Oceny_z_zajęć[Punkty],tbl_Oceny_z_zajęć[Zajęcia],Obliczenia!$C10,tbl_Oceny_z_zajęć[Typ],Obliczenia!AH$5)*Ustawienia!J13,\"\")","v":""},{"$f":"IFERROR(AVERAGEIFS(tbl_Oceny_z_zajęć[Punkty],tbl_Oceny_z_zajęć[Zajęcia],Obliczenia!$C10,tbl_Oceny_z_zajęć[Typ],Obliczenia!AI$5)*Ustawienia!K13,\"\")","v":""},0.15000000000000002,{"$f":"SUMIFS(Ustawienia!E13:K13,Obliczenia!AC10:AI10,\">0\")","v":0.2},{"v":0.7500000000000001,"d":"75%"},2,"C"]
[null,null,{"$f":"IF(Ustawienia!C14=\"\",\"\",Ustawienia!C14)","v":"Hiszpański"},{"v":0.5,"d":"50%"},"","","","","","","","","","","","","","","","","","","","","","","","",{"$f":"IFERROR(AVERAGEIFS(tbl_Oceny_z_zajęć[Punkty],tbl_Oceny_z_zajęć[Zajęcia],Obliczenia!$C11,tbl_Oceny_z_zajęć[Typ],Obliczenia!AC$5)*Ustawienia!E14,\"\")","v":0.05},{"$f":"IFERROR(AVERAGEIFS(tbl_Oceny_z_zajęć[Punkty],tbl_Oceny_z_zajęć[Zajęcia],Obliczenia!$C11,tbl_Oceny_z_zajęć[Typ],Obliczenia!AD$5)*Ustawienia!F14,\"\")","v":""},{"$f":"IFERROR(AVERAGEIFS(tbl_Oceny_z_zajęć[Punkty],tbl_Oceny_z_zajęć[Zajęcia],Obliczenia!$C11,tbl_Oceny_z_zajęć[Typ],Obliczenia!AE$5)*Ustawienia!G14,\"\")","v":""},{"$f":"IFERROR(AVERAGEIFS(tbl_Oceny_z_zajęć[Punkty],tbl_Oceny_z_zajęć[Zajęcia],Obliczenia!$C11,tbl_Oceny_z_zajęć[Typ],Obliczenia!AF$5)*Ustawienia!H14,\"\")","v":""},{"$f":"IFERROR(AVERAGEIFS(tbl_Oceny_z_zajęć[Punkty],tbl_Oceny_z_zajęć[Zajęcia],Obliczenia!$C11,tbl_Oceny_z_zajęć[Typ],Obliczenia!AG$5)*Ustawienia!I14,\"\")","v":""},{"$f":"IFERROR(AVERAGEIFS(tbl_Oceny_z_zajęć[Punkty],tbl_Oceny_z_zajęć[Zajęcia],Obliczenia!$C11,tbl_Oceny_z_zajęć[Typ],Obliczenia!AH$5)*Ustawienia!J14,\"\")","v":""},{"$f":"IFERROR(AVERAGEIFS(tbl_Oceny_z_zajęć[Punkty],tbl_Oceny_z_zajęć[Zajęcia],Obliczenia!$C11,tbl_Oceny_z_zajęć[Typ],Obliczenia!AI$5)*Ustawienia!K14,\"\")","v":""},0.05,{"$f":"SUMIFS(Ustawienia!E14:K14,Obliczenia!AC11:AI11,\">0\")","v":0.1},{"v":0.5,"d":"50%"},0,"F"]
[null,null,{"$f":"IF(Ustawienia!C15=\"\",\"\",Ustawienia!C15)","v":"Wypracowania"},{"v":0.95,"d":"95%"},"","","","","","","","","","","","","","","","","","","","","","","","",{"$f":"IFERROR(AVERAGEIFS(tbl_Oceny_z_zajęć[Punkty],tbl_Oceny_z_zajęć[Zajęcia],Obliczenia!$C12,tbl_Oceny_z_zajęć[Typ],Obliczenia!AC$5)*Ustawienia!E15,\"\")","v":""},{"$f":"IFERROR(AVERAGEIFS(tbl_Oceny_z_zajęć[Punkty],tbl_Oceny_z_zajęć[Zajęcia],Obliczenia!$C12,tbl_Oceny_z_zajęć[Typ],Obliczenia!AD$5)*Ustawienia!F15,\"\")","v":0.1425},{"$f":"IFERROR(AVERAGEIFS(tbl_Oceny_z_zajęć[Punkty],tbl_Oceny_z_zajęć[Zajęcia],Obliczenia!$C12,tbl_Oceny_z_zajęć[Typ],Obliczenia!AE$5)*Ustawienia!G15,\"\")","v":""},{"$f":"IFERROR(AVERAGEIFS(tbl_Oceny_z_zajęć[Punkty],tbl_Oceny_z_zajęć[Zajęcia],Obliczenia!$C12,tbl_Oceny_z_zajęć[Typ],Obliczenia!AF$5)*Ustawienia!H15,\"\")","v":""},{"$f":"IFERROR(AVERAGEIFS(tbl_Oceny_z_zajęć[Punkty],tbl_Oceny_z_zajęć[Zajęcia],Obliczenia!$C12,tbl_Oceny_z_zajęć[Typ],Obliczenia!AG$5)*Ustawienia!I15,\"\")","v":""},{"$f":"IFERROR(AVERAGEIFS(tbl_Oceny_z_zajęć[Punkty],tbl_Oceny_z_zajęć[Zajęcia],Obliczenia!$C12,tbl_Oceny_z_zajęć[Typ],Obliczenia!AH$5)*Ustawienia!J15,\"\")","v":""},{"$f":"IFERROR(AVERAGEIFS(tbl_Oceny_z_zajęć[Punkty],tbl_Oceny_z_zajęć[Zajęcia],Obliczenia!$C12,tbl_Oceny_z_zajęć[Typ],Obliczenia!AI$5)*Ustawienia!K15,\"\")","v":""},0.1425,{"$f":"SUMIFS(Ustawienia!E15:K15,Obliczenia!AC12:AI12,\">0\")","v":0.15},{"v":0.95,"d":"95%"},4,"A"]
[null,null,{"$f":"IF(Ustawienia!C16=\"\",\"\",Ustawienia!C16)","v":""},"","","","","","","","","","","","","","","","","","","","","","","","","",{"$f":"IFERROR(AVERAGEIFS(tbl_Oceny_z_zajęć[Punkty],tbl_Oceny_z_zajęć[Zajęcia],Obliczenia!$C13,tbl_Oceny_z_zajęć[Typ],Obliczenia!AC$5)*Ustawienia!E16,\"\")","v":""},{"$f":"IFERROR(AVERAGEIFS(tbl_Oceny_z_zajęć[Punkty],tbl_Oceny_z_zajęć[Zajęcia],Obliczenia!$C13,tbl_Oceny_z_zajęć[Typ],Obliczenia!AD$5)*Ustawienia!F16,\"\")","v":""},{"$f":"IFERROR(AVERAGEIFS(tbl_Oceny_z_zajęć[Punkty],tbl_Oceny_z_zajęć[Zajęcia],Obliczenia!$C13,tbl_Oceny_z_zajęć[Typ],Obliczenia!AE$5)*Ustawienia!G16,\"\")","v":""},{"$f":"IFERROR(AVERAGEIFS(tbl_Oceny_z_zajęć[Punkty],tbl_Oceny_z_zajęć[Zajęcia],Obliczenia!$C13,tbl_Oceny_z_zajęć[Typ],Obliczenia!AF$5)*Ustawienia!H16,\"\")","v":""},{"$f":"IFERROR(AVERAGEIFS(tbl_Oceny_z_zajęć[Punkty],tbl_Oceny_z_zajęć[Zajęcia],Obliczenia!$C13,tbl_Oceny_z_zajęć[Typ],Obliczenia!AG$5)*Ustawienia!I16,\"\")","v":""},{"$f":"IFERROR(AVERAGEIFS(tbl_Oceny_z_zajęć[Punkty],tbl_Oceny_z_zajęć[Zajęcia],Obliczenia!$C13,tbl_Oceny_z_zajęć[Typ],Obliczenia!AH$5)*Ustawienia!J16,\"\")","v":""},{"$f":"IFERROR(AVERAGEIFS(tbl_Oceny_z_zajęć[Punkty],tbl_Oceny_z_zajęć[Zajęcia],Obliczenia!$C13,tbl_Oceny_z_zajęć[Typ],Obliczenia!AI$5)*Ustawienia!K16,\"\")","v":""},{"$f":"SUM(AC13:AI13)","v":0},{"$f":"SUMIFS(Ustawienia!E16:K16,Obliczenia!AC13:AI13,\">0\")","v":0},{"$f":"IFERROR(AJ13/AK13,\"\")","v":""},"",""]
[null,null,{"$f":"IF(Ustawienia!C17=\"\",\"\",Ustawienia!C17)","v":""},"","","","","","","","","","","","","","","","","","","","","","","","","",{"$f":"IFERROR(AVERAGEIFS(tbl_Oceny_z_zajęć[Punkty],tbl_Oceny_z_zajęć[Zajęcia],Obliczenia!$C14,tbl_Oceny_z_zajęć[Typ],Obliczenia!AC$5)*Ustawienia!E17,\"\")","v":""},{"$f":"IFERROR(AVERAGEIFS(tbl_Oceny_z_zajęć[Punkty],tbl_Oceny_z_zajęć[Zajęcia],Obliczenia!$C14,tbl_Oceny_z_zajęć[Typ],Obliczenia!AD$5)*Ustawienia!F17,\"\")","v":""},{"$f":"IFERROR(AVERAGEIFS(tbl_Oceny_z_zajęć[Punkty],tbl_Oceny_z_zajęć[Zajęcia],Obliczenia!$C14,tbl_Oceny_z_zajęć[Typ],Obliczenia!AE$5)*Ustawienia!G17,\"\")","v":""},{"$f":"IFERROR(AVERAGEIFS(tbl_Oceny_z_zajęć[Punkty],tbl_Oceny_z_zajęć[Zajęcia],Obliczenia!$C14,tbl_Oceny_z_zajęć[Typ],Obliczenia!AF$5)*Ustawienia!H17,\"\")","v":""},{"$f":"IFERROR(AVERAGEIFS(tbl_Oceny_z_zajęć[Punkty],tbl_Oceny_z_zajęć[Zajęcia],Obliczenia!$C14,tbl_Oceny_z_zajęć[Typ],Obliczenia!AG$5)*Ustawienia!I17,\"\")","v":""},{"$f":"IFERROR(AVERAGEIFS(tbl_Oceny_z_zajęć[Punkty],tbl_Oceny_z_zajęć[Zajęcia],Obliczenia!$C14,tbl_Oceny_z_zajęć[Typ],Obliczenia!AH$5)*Ustawienia!J17,\"\")","v":""},{"$f":"IFERROR(AVERAGEIFS(tbl_Oceny_z_zajęć[Punkty],tbl_Oceny_z_zajęć[Zajęcia],Obliczenia!$C14,tbl_Oceny_z_zajęć[Typ],Obliczenia!AI$5)*Ustawienia!K17,\"\")","v":""},0,{"$f":"SUMIFS(Ustawienia!E17:K17,Obliczenia!AC14:AI14,\">0\")","v":0},"","",""]
[null,null,{"$f":"IF(Ustawienia!C18=\"\",\"\",Ustawienia!C18)","v":""},"","","","","","","","","","","","","","","","","","","","","","","","","",{"$f":"IFERROR(AVERAGEIFS(tbl_Oceny_z_zajęć[Punkty],tbl_Oceny_z_zajęć[Zajęcia],Obliczenia!$C15,tbl_Oceny_z_zajęć[Typ],Obliczenia!AC$5)*Ustawienia!E18,\"\")","v":""},{"$f":"IFERROR(AVERAGEIFS(tbl_Oceny_z_zajęć[Punkty],tbl_Oceny_z_zajęć[Zajęcia],Obliczenia!$C15,tbl_Oceny_z_zajęć[Typ],Obliczenia!AD$5)*Ustawienia!F18,\"\")","v":""},{"$f":"IFERROR(AVERAGEIFS(tbl_Oceny_z_zajęć[Punkty],tbl_Oceny_z_zajęć[Zajęcia],Obliczenia!$C15,tbl_Oceny_z_zajęć[Typ],Obliczenia!AE$5)*Ustawienia!G18,\"\")","v":""},{"$f":"IFERROR(AVERAGEIFS(tbl_Oceny_z_zajęć[Punkty],tbl_Oceny_z_zajęć[Zajęcia],Obliczenia!$C15,tbl_Oceny_z_zajęć[Typ],Obliczenia!AF$5)*Ustawienia!H18,\"\")","v":""},{"$f":"IFERROR(AVERAGEIFS(tbl_Oceny_z_zajęć[Punkty],tbl_Oceny_z_zajęć[Zajęcia],Obliczenia!$C15,tbl_Oceny_z_zajęć[Typ],Obliczenia!AG$5)*Ustawienia!I18,\"\")","v":""},{"$f":"IFERROR(AVERAGEIFS(tbl_Oceny_z_zajęć[Punkty],tbl_Oceny_z_zajęć[Zajęcia],Obliczenia!$C15,tbl_Oceny_z_zajęć[Typ],Obliczenia!AH$5)*Ustawienia!J18,\"\")","v":""},{"$f":"IFERROR(AVERAGEIFS(tbl_Oceny_z_zajęć[Punkty],tbl_Oceny_z_zajęć[Zajęcia],Obliczenia!$C15,tbl_Oceny_z_zajęć[Typ],Obliczenia!AI$5)*Ustawienia!K18,\"\")","v":""},0,{"$f":"SUMIFS(Ustawienia!E18:K18,Obliczenia!AC15:AI15,\">0\")","v":0},"","",""]
[null,null,{"$f":"IF(Ustawienia!C19=\"\",\"\",Ustawienia!C19)","v":""},"","","","","","","","","","","","","","","","","","","","","","","","","",{"$f":"IFERROR(AVERAGEIFS(tbl_Oceny_z_zajęć[Punkty],tbl_Oceny_z_zajęć[Zajęcia],Obliczenia!$C16,tbl_Oceny_z_zajęć[Typ],Obliczenia!AC$5)*Ustawienia!E19,\"\")","v":""},{"$f":"IFERROR(AVERAGEIFS(tbl_Oceny_z_zajęć[Punkty],tbl_Oceny_z_zajęć[Zajęcia],Obliczenia!$C16,tbl_Oceny_z_zajęć[Typ],Obliczenia!AD$5)*Ustawienia!F19,\"\")","v":""},{"$f":"IFERROR(AVERAGEIFS(tbl_Oceny_z_zajęć[Punkty],tbl_Oceny_z_zajęć[Zajęcia],Obliczenia!$C16,tbl_Oceny_z_zajęć[Typ],Obliczenia!AE$5)*Ustawienia!G19,\"\")","v":""},{"$f":"IFERROR(AVERAGEIFS(tbl_Oceny_z_zajęć[Punkty],tbl_Oceny_z_zajęć[Zajęcia],Obliczenia!$C16,tbl_Oceny_z_zajęć[Typ],Obliczenia!AF$5)*Ustawienia!H19,\"\")","v":""},{"$f":"IFERROR(AVERAGEIFS(tbl_Oceny_z_zajęć[Punkty],tbl_Oceny_z_zajęć[Zajęcia],Obliczenia!$C16,tbl_Oceny_z_zajęć[Typ],Obliczenia!AG$5)*Ustawienia!I19,\"\")","v":""},{"$f":"IFERROR(AVERAGEIFS(tbl_Oceny_z_zajęć[Punkty],tbl_Oceny_z_zajęć[Zajęcia],Obliczenia!$C16,tbl_Oceny_z_zajęć[Typ],Obliczenia!AH$5)*Ustawienia!J19,\"\")","v":""},{"$f":"IFERROR(AVERAGEIFS(tbl_Oceny_z_zajęć[Punkty],tbl_Oceny_z_zajęć[Zajęcia],Obliczenia!$C16,tbl_Oceny_z_zajęć[Typ],Obliczenia!AI$5)*Ustawienia!K19,\"\")","v":""},0,{"$f":"SUMIFS(Ustawienia!E19:K19,Obliczenia!AC16:AI16,\">0\")","v":0},"","",""]
[null,null,{"$f":"IF(Ustawienia!C20=\"\",\"\",Ustawienia!C20)","v":""},"","","","","","","","","","","","","","","","","","","","","","","","","",{"$f":"IFERROR(AVERAGEIFS(tbl_Oceny_z_zajęć[Punkty],tbl_Oceny_z_zajęć[Zajęcia],Obliczenia!$C17,tbl_Oceny_z_zajęć[Typ],Obliczenia!AC$5)*Ustawienia!E20,\"\")","v":""},{"$f":"IFERROR(AVERAGEIFS(tbl_Oceny_z_zajęć[Punkty],tbl_Oceny_z_zajęć[Zajęcia],Obliczenia!$C17,tbl_Oceny_z_zajęć[Typ],Obliczenia!AD$5)*Ustawienia!F20,\"\")","v":""},{"$f":"IFERROR(AVERAGEIFS(tbl_Oceny_z_zajęć[Punkty],tbl_Oceny_z_zajęć[Zajęcia],Obliczenia!$C17,tbl_Oceny_z_zajęć[Typ],Obliczenia!AE$5)*Ustawienia!G20,\"\")","v":""},{"$f":"IFERROR(AVERAGEIFS(tbl_Oceny_z_zajęć[Punkty],tbl_Oceny_z_zajęć[Zajęcia],Obliczenia!$C17,tbl_Oceny_z_zajęć[Typ],Obliczenia!AF$5)*Ustawienia!H20,\"\")","v":""},{"$f":"IFERROR(AVERAGEIFS(tbl_Oceny_z_zajęć[Punkty],tbl_Oceny_z_zajęć[Zajęcia],Obliczenia!$C17,tbl_Oceny_z_zajęć[Typ],Obliczenia!AG$5)*Ustawienia!I20,\"\")","v":""},{"$f":"IFERROR(AVERAGEIFS(tbl_Oceny_z_zajęć[Punkty],tbl_Oceny_z_zajęć[Zajęcia],Obliczenia!$C17,tbl_Oceny_z_zajęć[Typ],Obliczenia!AH$5)*Ustawienia!J20,\"\")","v":""},{"$f":"IFERROR(AVERAGEIFS(tbl_Oceny_z_zajęć[Punkty],tbl_Oceny_z_zajęć[Zajęcia],Obliczenia!$C17,tbl_Oceny_z_zajęć[Typ],Obliczenia!AI$5)*Ustawienia!K20,\"\")","v":""},0,{"$f":"SUMIFS(Ustawienia!E20:K20,Obliczenia!AC17:AI17,\">0\")","v":0},"","",""]
[null,null,{"$f":"IF(Ustawienia!C21=\"\",\"\",Ustawienia!C21)","v":""},"","","","","","","","","","","","","","","","","","","","","","","","","",{"$f":"IFERROR(AVERAGEIFS(tbl_Oceny_z_zajęć[Punkty],tbl_Oceny_z_zajęć[Zajęcia],Obliczenia!$C18,tbl_Oceny_z_zajęć[Typ],Obliczenia!AC$5)*Ustawienia!E21,\"\")","v":""},{"$f":"IFERROR(AVERAGEIFS(tbl_Oceny_z_zajęć[Punkty],tbl_Oceny_z_zajęć[Zajęcia],Obliczenia!$C18,tbl_Oceny_z_zajęć[Typ],Obliczenia!AD$5)*Ustawienia!F21,\"\")","v":""},{"$f":"IFERROR(AVERAGEIFS(tbl_Oceny_z_zajęć[Punkty],tbl_Oceny_z_zajęć[Zajęcia],Obliczenia!$C18,tbl_Oceny_z_zajęć[Typ],Obliczenia!AE$5)*Ustawienia!G21,\"\")","v":""},{"$f":"IFERROR(AVERAGEIFS(tbl_Oceny_z_zajęć[Punkty],tbl_Oceny_z_zajęć[Zajęcia],Obliczenia!$C18,tbl_Oceny_z_zajęć[Typ],Obliczenia!AF$5)*Ustawienia!H21,\"\")","v":""},{"$f":"IFERROR(AVERAGEIFS(tbl_Oceny_z_zajęć[Punkty],tbl_Oceny_z_zajęć[Zajęcia],Obliczenia!$C18,tbl_Oceny_z_zajęć[Typ],Obliczenia!AG$5)*Ustawienia!I21,\"\")","v":""},{"$f":"IFERROR(AVERAGEIFS(tbl_Oceny_z_zajęć[Punkty],tbl_Oceny_z_zajęć[Zajęcia],Obliczenia!$C18,tbl_Oceny_z_zajęć[Typ],Obliczenia!AH$5)*Ustawienia!J21,\"\")","v":""},{"$f":"IFERROR(AVERAGEIFS(tbl_Oceny_z_zajęć[Punkty],tbl_Oceny_z_zajęć[Zajęcia],Obliczenia!$C18,tbl_Oceny_z_zajęć[Typ],Obliczenia!AI$5)*Ustawienia!K21,\"\")","v":""},0,{"$f":"SUMIFS(Ustawienia!E21:K21,Obliczenia!AC18:AI18,\">0\")","v":0},"","",""]
[null,null,{"$f":"IF(Ustawienia!C22=\"\",\"\",Ustawienia!C22)","v":""},"","","","","","","","","","","","","","","","","","","","","","","","","",{"$f":"IFERROR(AVERAGEIFS(tbl_Oceny_z_zajęć[Punkty],tbl_Oceny_z_zajęć[Zajęcia],Obliczenia!$C19,tbl_Oceny_z_zajęć[Typ],Obliczenia!AC$5)*Ustawienia!E22,\"\")","v":""},{"$f":"IFERROR(AVERAGEIFS(tbl_Oceny_z_zajęć[Punkty],tbl_Oceny_z_zajęć[Zajęcia],Obliczenia!$C19,tbl_Oceny_z_zajęć[Typ],Obliczenia!AD$5)*Ustawienia!F22,\"\")","v":""},{"$f":"IFERROR(AVERAGEIFS(tbl_Oceny_z_zajęć[Punkty],tbl_Oceny_z_zajęć[Zajęcia],Obliczenia!$C19,tbl_Oceny_z_zajęć[Typ],Obliczenia!AE$5)*Ustawienia!G22,\"\")","v":""},{"$f":"IFERROR(AVERAGEIFS(tbl_Oceny_z_zajęć[Punkty],tbl_Oceny_z_zajęć[Zajęcia],Obliczenia!$C19,tbl_Oceny_z_zajęć[Typ],Obliczenia!AF$5)*Ustawienia!H22,\"\")","v":""},{"$f":"IFERROR(AVERAGEIFS(tbl_Oceny_z_zajęć[Punkty],tbl_Oceny_z_zajęć[Zajęcia],Obliczenia!$C19,tbl_Oceny_z_zajęć[Typ],Obliczenia!AG$5)*Ustawienia!I22,\"\")","v":""},{"$f":"IFERROR(AVERAGEIFS(tbl_Oceny_z_zajęć[Punkty],tbl_Oceny_z_zajęć[Zajęcia],Obliczenia!$C19,tbl_Oceny_z_zajęć[Typ],Obliczenia!AH$5)*Ustawienia!J22,\"\")","v":""},{"$f":"IFERROR(AVERAGEIFS(tbl_Oceny_z_zajęć[Punkty],tbl_Oceny_z_zajęć[Zajęcia],Obliczenia!$C19,tbl_Oceny_z_zajęć[Typ],Obliczenia!AI$5)*Ustawienia!K22,\"\")","v":""},0,{"$f":"SUMIFS(Ustawienia!E22:K22,Obliczenia!AC19:AI19,\">0\")","v":0},"","",""]
[null,null,{"$f":"IF(Ustawienia!C23=\"\",\"\",Ustawienia!C23)","v":""},"","","","","","","","","","","","","","","","","","","","","","","","","",{"$f":"IFERROR(AVERAGEIFS(tbl_Oceny_z_zajęć[Punkty],tbl_Oceny_z_zajęć[Zajęcia],Obliczenia!$C20,tbl_Oceny_z_zajęć[Typ],Obliczenia!AC$5)*Ustawienia!E23,\"\")","v":""},{"$f":"IFERROR(AVERAGEIFS(tbl_Oceny_z_zajęć[Punkty],tbl_Oceny_z_zajęć[Zajęcia],Obliczenia!$C20,tbl_Oceny_z_zajęć[Typ],Obliczenia!AD$5)*Ustawienia!F23,\"\")","v":""},{"$f":"IFERROR(AVERAGEIFS(tbl_Oceny_z_zajęć[Punkty],tbl_Oceny_z_zajęć[Zajęcia],Obliczenia!$C20,tbl_Oceny_z_zajęć[Typ],Obliczenia!AE$5)*Ustawienia!G23,\"\")","v":""},{"$f":"IFERROR(AVERAGEIFS(tbl_Oceny_z_zajęć[Punkty],tbl_Oceny_z_zajęć[Zajęcia],Obliczenia!$C20,tbl_Oceny_z_zajęć[Typ],Obliczenia!AF$5)*Ustawienia!H23,\"\")","v":""},{"$f":"IFERROR(AVERAGEIFS(tbl_Oceny_z_zajęć[Punkty],tbl_Oceny_z_zajęć[Zajęcia],Obliczenia!$C20,tbl_Oceny_z_zajęć[Typ],Obliczenia!AG$5)*Ustawienia!I23,\"\")","v":""},{"$f":"IFERROR(AVERAGEIFS(tbl_Oceny_z_zajęć[Punkty],tbl_Oceny_z_zajęć[Zajęcia],Obliczenia!$C20,tbl_Oceny_z_zajęć[Typ],Obliczenia!AH$5)*Ustawienia!J23,\"\")","v":""},{"$f":"IFERROR(AVERAGEIFS(tbl_Oceny_z_zajęć[Punkty],tbl_Oceny_z_zajęć[Zajęcia],Obliczenia!$C20,tbl_Oceny_z_zajęć[Typ],Obliczenia!AI$5)*Ustawienia!K23,\"\")","v":""},0,{"$f":"SUMIFS(Ustawienia!E23:K23,Obliczenia!AC20:AI20,\">0\")","v":0},"","",""]
[null,null,{"$f":"IF(Ustawienia!C24=\"\",\"\",Ustawienia!C24)","v":""},"","","","","","","","","","","","","","","","","","","","","","","","","",{"$f":"IFERROR(AVERAGEIFS(tbl_Oceny_z_zajęć[Punkty],tbl_Oceny_z_zajęć[Zajęcia],Obliczenia!$C21,tbl_Oceny_z_zajęć[Typ],Obliczenia!AC$5)*Ustawienia!E24,\"\")","v":""},{"$f":"IFERROR(AVERAGEIFS(tbl_Oceny_z_zajęć[Punkty],tbl_Oceny_z_zajęć[Zajęcia],Obliczenia!$C21,tbl_Oceny_z_zajęć[Typ],Obliczenia!AD$5)*Ustawienia!F24,\"\")","v":""},{"$f":"IFERROR(AVERAGEIFS(tbl_Oceny_z_zajęć[Punkty],tbl_Oceny_z_zajęć[Zajęcia],Obliczenia!$C21,tbl_Oceny_z_zajęć[Typ],Obliczenia!AE$5)*Ustawienia!G24,\"\")","v":""},{"$f":"IFERROR(AVERAGEIFS(tbl_Oceny_z_zajęć[Punkty],tbl_Oceny_z_zajęć[Zajęcia],Obliczenia!$C21,tbl_Oceny_z_zajęć[Typ],Obliczenia!AF$5)*Ustawienia!H24,\"\")","v":""},{"$f":"IFERROR(AVERAGEIFS(tbl_Oceny_z_zajęć[Punkty],tbl_Oceny_z_zajęć[Zajęcia],Obliczenia!$C21,tbl_Oceny_z_zajęć[Typ],Obliczenia!AG$5)*Ustawienia!I24,\"\")","v":""},{"$f":"IFERROR(AVERAGEIFS(tbl_Oceny_z_zajęć[Punkty],tbl_Oceny_z_zajęć[Zajęcia],Obliczenia!$C21,tbl_Oceny_z_zajęć[Typ],Obliczenia!AH$5)*Ustawienia!J24,\"\")","v":""},{"$f":"IFERROR(AVERAGEIFS(tbl_Oceny_z_zajęć[Punkty],tbl_Oceny_z_zajęć[Zajęcia],Obliczenia!$C21,tbl_Oceny_z_zajęć[Typ],Obliczenia!AI$5)*Ustawienia!K24,\"\")","v":""},0,{"$f":"SUMIFS(Ustawienia!E24:K24,Obliczenia!AC21:AI21,\">0\")","v":0},"","",""]
[null,null,{"$f":"IF(Ustawienia!C25=\"\",\"\",Ustawienia!C25)","v":""},"","","","","","","","","","","","","","","","","","","","","","","","","",{"$f":"IFERROR(AVERAGEIFS(tbl_Oceny_z_zajęć[Punkty],tbl_Oceny_z_zajęć[Zajęcia],Obliczenia!$C22,tbl_Oceny_z_zajęć[Typ],Obliczenia!AC$5)*Ustawienia!E25,\"\")","v":""},{"$f":"IFERROR(AVERAGEIFS(tbl_Oceny_z_zajęć[Punkty],tbl_Oceny_z_zajęć[Zajęcia],Obliczenia!$C22,tbl_Oceny_z_zajęć[Typ],Obliczenia!AD$5)*Ustawienia!F25,\"\")","v":""},{"$f":"IFERROR(AVERAGEIFS(tbl_Oceny_z_zajęć[Punkty],tbl_Oceny_z_zajęć[Zajęcia],Obliczenia!$C22,tbl_Oceny_z_zajęć[Typ],Obliczenia!AE$5)*Ustawienia!G25,\"\")","v":""},{"$f":"IFERROR(AVERAGEIFS(tbl_Oceny_z_zajęć[Punkty],tbl_Oceny_z_zajęć[Zajęcia],Obliczenia!$C22,tbl_Oceny_z_zajęć[Typ],Obliczenia!AF$5)*Ustawienia!H25,\"\")","v":""},{"$f":"IFERROR(AVERAGEIFS(tbl_Oceny_z_zajęć[Punkty],tbl_Oceny_z_zajęć[Zajęcia],Obliczenia!$C22,tbl_Oceny_z_zajęć[Typ],Obliczenia!AG$5)*Ustawienia!I25,\"\")","v":""},{"$f":"IFERROR(AVERAGEIFS(tbl_Oceny_z_zajęć[Punkty],tbl_Oceny_z_zajęć[Zajęcia],Obliczenia!$C22,tbl_Oceny_z_zajęć[Typ],Obliczenia!AH$5)*Ustawienia!J25,\"\")","v":""},{"$f":"IFERROR(AVERAGEIFS(tbl_Oceny_z_zajęć[Punkty],tbl_Oceny_z_zajęć[Zajęcia],Obliczenia!$C22,tbl_Oceny_z_zajęć[Typ],Obliczenia!AI$5)*Ustawienia!K25,\"\")","v":""},0,{"$f":"SUMIFS(Ustawienia!E25:K25,Obliczenia!AC22:AI22,\">0\")","v":0},"","",""]
[null,null,{"$f":"IF(Ustawienia!C26=\"\",\"\",Ustawienia!C26)","v":""},"","","","","","","","","","","","","","","","","","","","","","","","","",{"$f":"IFERROR(AVERAGEIFS(tbl_Oceny_z_zajęć[Punkty],tbl_Oceny_z_zajęć[Zajęcia],Obliczenia!$C23,tbl_Oceny_z_zajęć[Typ],Obliczenia!AC$5)*Ustawienia!E26,\"\")","v":""},{"$f":"IFERROR(AVERAGEIFS(tbl_Oceny_z_zajęć[Punkty],tbl_Oceny_z_zajęć[Zajęcia],Obliczenia!$C23,tbl_Oceny_z_zajęć[Typ],Obliczenia!AD$5)*Ustawienia!F26,\"\")","v":""},{"$f":"IFERROR(AVERAGEIFS(tbl_Oceny_z_zajęć[Punkty],tbl_Oceny_z_zajęć[Zajęcia],Obliczenia!$C23,tbl_Oceny_z_zajęć[Typ],Obliczenia!AE$5)*Ustawienia!G26,\"\")","v":""},{"$f":"IFERROR(AVERAGEIFS(tbl_Oceny_z_zajęć[Punkty],tbl_Oceny_z_zajęć[Zajęcia],Obliczenia!$C23,tbl_Oceny_z_zajęć[Typ],Obliczenia!AF$5)*Ustawienia!H26,\"\")","v":""},{"$f":"IFERROR(AVERAGEIFS(tbl_Oceny_z_zajęć[Punkty],tbl_Oceny_z_zajęć[Zajęcia],Obliczenia!$C23,tbl_Oceny_z_zajęć[Typ],Obliczenia!AG$5)*Ustawienia!I26,\"\")","v":""},{"$f":"IFERROR(AVERAGEIFS(tbl_Oceny_z_zajęć[Punkty],tbl_Oceny_z_zajęć[Zajęcia],Obliczenia!$C23,tbl_Oceny_z_zajęć[Typ],Obliczenia!AH$5)*Ustawienia!J26,\"\")","v":""},{"$f":"IFERROR(AVERAGEIFS(tbl_Oceny_z_zajęć[Punkty],tbl_Oceny_z_zajęć[Zajęcia],Obliczenia!$C23,tbl_Oceny_z_zajęć[Typ],Obliczenia!AI$5)*Ustawienia!K26,\"\")","v":""},0,{"$f":"SUMIFS(Ustawienia!E26:K26,Obliczenia!AC23:AI23,\">0\")","v":0},"","",""]
[null,null,{"$f":"IF(Ustawienia!C27=\"\",\"\",Ustawienia!C27)","v":""},"","","","","","","","","","","","","","","","","","","","","","","","","",{"$f":"IFERROR(AVERAGEIFS(tbl_Oceny_z_zajęć[Punkty],tbl_Oceny_z_zajęć[Zajęcia],Obliczenia!$C24,tbl_Oceny_z_zajęć[Typ],Obliczenia!AC$5)*Ustawienia!E27,\"\")","v":""},{"$f":"IFERROR(AVERAGEIFS(tbl_Oceny_z_zajęć[Punkty],tbl_Oceny_z_zajęć[Zajęcia],Obliczenia!$C24,tbl_Oceny_z_zajęć[Typ],Obliczenia!AD$5)*Ustawienia!F27,\"\")","v":""},{"$f":"IFERROR(AVERAGEIFS(tbl_Oceny_z_zajęć[Punkty],tbl_Oceny_z_zajęć[Zajęcia],Obliczenia!$C24,tbl_Oceny_z_zajęć[Typ],Obliczenia!AE$5)*Ustawienia!G27,\"\")","v":""},{"$f":"IFERROR(AVERAGEIFS(tbl_Oceny_z_zajęć[Punkty],tbl_Oceny_z_zajęć[Zajęcia],Obliczenia!$C24,tbl_Oceny_z_zajęć[Typ],Obliczenia!AF$5)*Ustawienia!H27,\"\")","v":""},{"$f":"IFERROR(AVERAGEIFS(tbl_Oceny_z_zajęć[Punkty],tbl_Oceny_z_zajęć[Zajęcia],Obliczenia!$C24,tbl_Oceny_z_zajęć[Typ],Obliczenia!AG$5)*Ustawienia!I27,\"\")","v":""},{"$f":"IFERROR(AVERAGEIFS(tbl_Oceny_z_zajęć[Punkty],tbl_Oceny_z_zajęć[Zajęcia],Obliczenia!$C24,tbl_Oceny_z_zajęć[Typ],Obliczenia!AH$5)*Ustawienia!J27,\"\")","v":""},{"$f":"IFERROR(AVERAGEIFS(tbl_Oceny_z_zajęć[Punkty],tbl_Oceny_z_zajęć[Zajęcia],Obliczenia!$C24,tbl_Oceny_z_zajęć[Typ],Obliczenia!AI$5)*Ustawienia!K27,\"\")","v":""},0,{"$f":"SUMIFS(Ustawienia!E27:K27,Obliczenia!AC24:AI24,\">0\")","v":0},"","",""]
[null,null,{"$f":"IF(Ustawienia!C28=\"\",\"\",Ustawienia!C28)","v":""},"","","","","","","","","","","","","","","","","","","","","","","","","",{"$f":"IFERROR(AVERAGEIFS(tbl_Oceny_z_zajęć[Punkty],tbl_Oceny_z_zajęć[Zajęcia],Obliczenia!$C25,tbl_Oceny_z_zajęć[Typ],Obliczenia!AC$5)*Ustawienia!E28,\"\")","v":""},{"$f":"IFERROR(AVERAGEIFS(tbl_Oceny_z_zajęć[Punkty],tbl_Oceny_z_zajęć[Zajęcia],Obliczenia!$C25,tbl_Oceny_z_zajęć[Typ],Obliczenia!AD$5)*Ustawienia!F28,\"\")","v":""},{"$f":"IFERROR(AVERAGEIFS(tbl_Oceny_z_zajęć[Punkty],tbl_Oceny_z_zajęć[Zajęcia],Obliczenia!$C25,tbl_Oceny_z_zajęć[Typ],Obliczenia!AE$5)*Ustawienia!G28,\"\")","v":""},{"$f":"IFERROR(AVERAGEIFS(tbl_Oceny_z_zajęć[Punkty],tbl_Oceny_z_zajęć[Zajęcia],Obliczenia!$C25,tbl_Oceny_z_zajęć[Typ],Obliczenia!AF$5)*Ustawienia!H28,\"\")","v":""},{"$f":"IFERROR(AVERAGEIFS(tbl_Oceny_z_zajęć[Punkty],tbl_Oceny_z_zajęć[Zajęcia],Obliczenia!$C25,tbl_Oceny_z_zajęć[Typ],Obliczenia!AG$5)*Ustawienia!I28,\"\")","v":""},{"$f":"IFERROR(AVERAGEIFS(tbl_Oceny_z_zajęć[Punkty],tbl_Oceny_z_zajęć[Zajęcia],Obliczenia!$C25,tbl_Oceny_z_zajęć[Typ],Obliczenia!AH$5)*Ustawienia!J28,\"\")","v":""},{"$f":"IFERROR(AVERAGEIFS(tbl_Oceny_z_zajęć[Punkty],tbl_Oceny_z_zajęć[Zajęcia],Obliczenia!$C25,tbl_Oceny_z_zajęć[Typ],Obliczenia!AI$5)*Ustawienia!K28,\"\")","v":""},0,{"$f":"SUMIFS(Ustawienia!E28:K28,Obliczenia!AC25:AI25,\">0\")","v":0},"","",""]
[null,null,{"$f":"IF(Ustawienia!C29=\"\",\"\",Ustawienia!C29)","v":""},"","","","","","","","","","","","","","","","","","","","","","","","","",{"$f":"IFERROR(AVERAGEIFS(tbl_Oceny_z_zajęć[Punkty],tbl_Oceny_z_zajęć[Zajęcia],Obliczenia!$C26,tbl_Oceny_z_zajęć[Typ],Obliczenia!AC$5)*Ustawienia!E29,\"\")","v":""},{"$f":"IFERROR(AVERAGEIFS(tbl_Oceny_z_zajęć[Punkty],tbl_Oceny_z_zajęć[Zajęcia],Obliczenia!$C26,tbl_Oceny_z_zajęć[Typ],Obliczenia!AD$5)*Ustawienia!F29,\"\")","v":""},{"$f":"IFERROR(AVERAGEIFS(tbl_Oceny_z_zajęć[Punkty],tbl_Oceny_z_zajęć[Zajęcia],Obliczenia!$C26,tbl_Oceny_z_zajęć[Typ],Obliczenia!AE$5)*Ustawienia!G29,\"\")","v":""},{"$f":"IFERROR(AVERAGEIFS(tbl_Oceny_z_zajęć[Punkty],tbl_Oceny_z_zajęć[Zajęcia],Obliczenia!$C26,tbl_Oceny_z_zajęć[Typ],Obliczenia!AF$5)*Ustawienia!H29,\"\")","v":""},{"$f":"IFERROR(AVERAGEIFS(tbl_Oceny_z_zajęć[Punkty],tbl_Oceny_z_zajęć[Zajęcia],Obliczenia!$C26,tbl_Oceny_z_zajęć[Typ],Obliczenia!AG$5)*Ustawienia!I29,\"\")","v":""},{"$f":"IFERROR(AVERAGEIFS(tbl_Oceny_z_zajęć[Punkty],tbl_Oceny_z_zajęć[Zajęcia],Obliczenia!$C26,tbl_Oceny_z_zajęć[Typ],Obliczenia!AH$5)*Ustawienia!J29,\"\")","v":""},{"$f":"IFERROR(AVERAGEIFS(tbl_Oceny_z_zajęć[Punkty],tbl_Oceny_z_zajęć[Zajęcia],Obliczenia!$C26,tbl_Oceny_z_zajęć[Typ],Obliczenia!AI$5)*Ustawienia!K29,\"\")","v":""},0,{"$f":"SUMIFS(Ustawienia!E29:K29,Obliczenia!AC26:AI26,\">0\")","v":0},"","",""]
[null,null,{"$f":"IF(Ustawienia!C30=\"\",\"\",Ustawienia!C30)","v":""},"","","","","","","","","","","","","","","","","","","","","","","","","",{"$f":"IFERROR(AVERAGEIFS(tbl_Oceny_z_zajęć[Punkty],tbl_Oceny_z_zajęć[Zajęcia],Obliczenia!$C27,tbl_Oceny_z_zajęć[Typ],Obliczenia!AC$5)*Ustawienia!E30,\"\")","v":""},{"$f":"IFERROR(AVERAGEIFS(tbl_Oceny_z_zajęć[Punkty],tbl_Oceny_z_zajęć[Zajęcia],Obliczenia!$C27,tbl_Oceny_z_zajęć[Typ],Obliczenia!AD$5)*Ustawienia!F30,\"\")","v":""},{"$f":"IFERROR(AVERAGEIFS(tbl_Oceny_z_zajęć[Punkty],tbl_Oceny_z_zajęć[Zajęcia],Obliczenia!$C27,tbl_Oceny_z_zajęć[Typ],Obliczenia!AE$5)*Ustawienia!G30,\"\")","v":""},{"$f":"IFERROR(AVERAGEIFS(tbl_Oceny_z_zajęć[Punkty],tbl_Oceny_z_zajęć[Zajęcia],Obliczenia!$C27,tbl_Oceny_z_zajęć[Typ],Obliczenia!AF$5)*Ustawienia!H30,\"\")","v":""},{"$f":"IFERROR(AVERAGEIFS(tbl_Oceny_z_zajęć[Punkty],tbl_Oceny_z_zajęć[Zajęcia],Obliczenia!$C27,tbl_Oceny_z_zajęć[Typ],Obliczenia!AG$5)*Ustawienia!I30,\"\")","v":""},{"$f":"IFERROR(AVERAGEIFS(tbl_Oceny_z_zajęć[Punkty],tbl_Oceny_z_zajęć[Zajęcia],Obliczenia!$C27,tbl_Oceny_z_zajęć[Typ],Obliczenia!AH$5)*Ustawienia!J30,\"\")","v":""},{"$f":"IFERROR(AVERAGEIFS(tbl_Oceny_z_zajęć[Punkty],tbl_Oceny_z_zajęć[Zajęcia],Obliczenia!$C27,tbl_Oceny_z_zajęć[Typ],Obliczenia!AI$5)*Ustawienia!K30,\"\")","v":""},0,{"$f":"SUMIFS(Ustawienia!E30:K30,Obliczenia!AC27:AI27,\">0\")","v":0},"","",""]
[null,null,{"$f":"IF(Ustawienia!C31=\"\",\"\",Ustawienia!C31)","v":""},"","","","","","","","","","","","","","","","","","","","","","","","","",{"$f":"IFERROR(AVERAGEIFS(tbl_Oceny_z_zajęć[Punkty],tbl_Oceny_z_zajęć[Zajęcia],Obliczenia!$C28,tbl_Oceny_z_zajęć[Typ],Obliczenia!AC$5)*Ustawienia!E31,\"\")","v":""},{"$f":"IFERROR(AVERAGEIFS(tbl_Oceny_z_zajęć[Punkty],tbl_Oceny_z_zajęć[Zajęcia],Obliczenia!$C28,tbl_Oceny_z_zajęć[Typ],Obliczenia!AD$5)*Ustawienia!F31,\"\")","v":""},{"$f":"IFERROR(AVERAGEIFS(tbl_Oceny_z_zajęć[Punkty],tbl_Oceny_z_zajęć[Zajęcia],Obliczenia!$C28,tbl_Oceny_z_zajęć[Typ],Obliczenia!AE$5)*Ustawienia!G31,\"\")","v":""},{"$f":"IFERROR(AVERAGEIFS(tbl_Oceny_z_zajęć[Punkty],tbl_Oceny_z_zajęć[Zajęcia],Obliczenia!$C28,tbl_Oceny_z_zajęć[Typ],Obliczenia!AF$5)*Ustawienia!H31,\"\")","v":""},{"$f":"IFERROR(AVERAGEIFS(tbl_Oceny_z_zajęć[Punkty],tbl_Oceny_z_zajęć[Zajęcia],Obliczenia!$C28,tbl_Oceny_z_zajęć[Typ],Obliczenia!AG$5)*Ustawienia!I31,\"\")","v":""},{"$f":"IFERROR(AVERAGEIFS(tbl_Oceny_z_zajęć[Punkty],tbl_Oceny_z_zajęć[Zajęcia],Obliczenia!$C28,tbl_Oceny_z_zajęć[Typ],Obliczenia!AH$5)*Ustawienia!J31,\"\")","v":""},{"$f":"IFERROR(AVERAGEIFS(tbl_Oceny_z_zajęć[Punkty],tbl_Oceny_z_zajęć[Zajęcia],Obliczenia!$C28,tbl_Oceny_z_zajęć[Typ],Obliczenia!AI$5)*Ustawienia!K31,\"\")","v":""},0,{"$f":"SUMIFS(Ustawienia!E31:K31,Obliczenia!AC28:AI28,\">0\")","v":0},"","",""]
[null,null,{"$f":"IF(Ustawienia!C32=\"\",\"\",Ustawienia!C32)","v":""},"","","","","","","","","","","","","","","","","","","","","","","","","",{"$f":"IFERROR(AVERAGEIFS(tbl_Oceny_z_zajęć[Punkty],tbl_Oceny_z_zajęć[Zajęcia],Obliczenia!$C29,tbl_Oceny_z_zajęć[Typ],Obliczenia!AC$5)*Ustawienia!E32,\"\")","v":""},{"$f":"IFERROR(AVERAGEIFS(tbl_Oceny_z_zajęć[Punkty],tbl_Oceny_z_zajęć[Zajęcia],Obliczenia!$C29,tbl_Oceny_z_zajęć[Typ],Obliczenia!AD$5)*Ustawienia!F32,\"\")","v":""},{"$f":"IFERROR(AVERAGEIFS(tbl_Oceny_z_zajęć[Punkty],tbl_Oceny_z_zajęć[Zajęcia],Obliczenia!$C29,tbl_Oceny_z_zajęć[Typ],Obliczenia!AE$5)*Ustawienia!G32,\"\")","v":""},{"$f":"IFERROR(AVERAGEIFS(tbl_Oceny_z_zajęć[Punkty],tbl_Oceny_z_zajęć[Zajęcia],Obliczenia!$C29,tbl_Oceny_z_zajęć[Typ],Obliczenia!AF$5)*Ustawienia!H32,\"\")","v":""},{"$f":"IFERROR(AVERAGEIFS(tbl_Oceny_z_zajęć[Punkty],tbl_Oceny_z_zajęć[Zajęcia],Obliczenia!$C29,tbl_Oceny_z_zajęć[Typ],Obliczenia!AG$5)*Ustawienia!I32,\"\")","v":""},{"$f":"IFERROR(AVERAGEIFS(tbl_Oceny_z_zajęć[Punkty],tbl_Oceny_z_zajęć[Zajęcia],Obliczenia!$C29,tbl_Oceny_z_zajęć[Typ],Obliczenia!AH$5)*Ustawienia!J32,\"\")","v":""},{"$f":"IFERROR(AVERAGEIFS(tbl_Oceny_z_zajęć[Punkty],tbl_Oceny_z_zajęć[Zajęcia],Obliczenia!$C29,tbl_Oceny_z_zajęć[Typ],Obliczenia!AI$5)*Ustawienia!K32,\"\")","v":""},0,{"$f":"SUMIFS(Ustawienia!E32:K32,Obliczenia!AC29:AI29,\">0\")","v":0},"","",""]
[null,null,{"$f":"IF(Ustawienia!C33=\"\",\"\",Ustawienia!C33)","v":""},"","","","","","","","","","","","","","","","","","","","","","","","","",{"$f":"IFERROR(AVERAGEIFS(tbl_Oceny_z_zajęć[Punkty],tbl_Oceny_z_zajęć[Zajęcia],Obliczenia!$C30,tbl_Oceny_z_zajęć[Typ],Obliczenia!AC$5)*Ustawienia!E33,\"\")","v":""},{"$f":"IFERROR(AVERAGEIFS(tbl_Oceny_z_zajęć[Punkty],tbl_Oceny_z_zajęć[Zajęcia],Obliczenia!$C30,tbl_Oceny_z_zajęć[Typ],Obliczenia!AD$5)*Ustawienia!F33,\"\")","v":""},{"$f":"IFERROR(AVERAGEIFS(tbl_Oceny_z_zajęć[Punkty],tbl_Oceny_z_zajęć[Zajęcia],Obliczenia!$C30,tbl_Oceny_z_zajęć[Typ],Obliczenia!AE$5)*Ustawienia!G33,\"\")","v":""},{"$f":"IFERROR(AVERAGEIFS(tbl_Oceny_z_zajęć[Punkty],tbl_Oceny_z_zajęć[Zajęcia],Obliczenia!$C30,tbl_Oceny_z_zajęć[Typ],Obliczenia!AF$5)*Ustawienia!H33,\"\")","v":""},{"$f":"IFERROR(AVERAGEIFS(tbl_Oceny_z_zajęć[Punkty],tbl_Oceny_z_zajęć[Zajęcia],Obliczenia!$C30,tbl_Oceny_z_zajęć[Typ],Obliczenia!AG$5)*Ustawienia!I33,\"\")","v":""},{"$f":"IFERROR(AVERAGEIFS(tbl_Oceny_z_zajęć[Punkty],tbl_Oceny_z_zajęć[Zajęcia],Obliczenia!$C30,tbl_Oceny_z_zajęć[Typ],Obliczenia!AH$5)*Ustawienia!J33,\"\")","v":""},{"$f":"IFERROR(AVERAGEIFS(tbl_Oceny_z_zajęć[Punkty],tbl_Oceny_z_zajęć[Zajęcia],Obliczenia!$C30,tbl_Oceny_z_zajęć[Typ],Obliczenia!AI$5)*Ustawienia!K33,\"\")","v":""},0,{"$f":"SUMIFS(Ustawienia!E33:K33,Obliczenia!AC30:AI30,\">0\")","v":0},"","",""]
[]
[]
[null,1,{"$f":"'Śledzenie ocen'!C4&COUNTIF('Śledzenie ocen'!$C$4:C4,'Śledzenie ocen'!C4)","v":"Współczesny język francuski1"}]
[null,2,{"$f":"'Śledzenie ocen'!C5&COUNTIF('Śledzenie ocen'!$C$4:C5,'Śledzenie ocen'!C5)","v":"Zaawansowane programowanie w języku Java1"}]
[null,3,{"$f":"'Śledzenie ocen'!C6&COUNTIF('Śledzenie ocen'!$C$4:C6,'Śledzenie ocen'!C6)","v":"Hiszpański1"}]
[null,4,{"$f":"'Śledzenie ocen'!C7&COUNTIF('Śledzenie ocen'!$C$4:C7,'Śledzenie ocen'!C7)","v":"Fizyka teoretyczna1"}]
[null,5,{"$f":"'Śledzenie ocen'!C8&COUNTIF('Śledzenie ocen'!$C$4:C8,'Śledzenie ocen'!C8)","v":"Współczesny język francuski2"}]
[null,6,{"$f":"'Śledzenie ocen'!C9&COUNTIF('Śledzenie ocen'!$C$4:C9,'Śledzenie ocen'!C9)","v":"Współczesny język francuski3"}]
[null,7,{"$f":"'Śledzenie ocen'!C10&COUNTIF('Śledzenie ocen'!$C$4:C10,'Śledzenie ocen'!C10)","v":"Wypracowania1"}]
[null,8,{"$f":"'Śledzenie ocen'!C11&COUNTIF('Śledzenie ocen'!$C$4:C11,'Śledzenie ocen'!C11)","v":"Matematyka 11"}]
[null,9,{"$f":"'Śledzenie ocen'!C12&COUNTIF('Śledzenie ocen'!$C$4:C12,'Śledzenie ocen'!C12)","v":"Matematyka 21"}]
[null,10,{"$f":"'Śledzenie ocen'!C13&COUNTIF('Śledzenie ocen'!$C$4:C13,'Śledzenie ocen'!C13)","v":"Matematyka 12"}]
[null,11,{"$f":"'Śledzenie ocen'!C14&COUNTIF('Śledzenie ocen'!$C$4:C14,'Śledzenie ocen'!C14)","v":"Matematyka 22"}]
[null,12,{"$f":"'Śledzenie ocen'!C15&COUNTIF('Śledzenie ocen'!$C$4:C15,'Śledzenie ocen'!C15)","v":"0"}]
[null,13,{"$f":"'Śledzenie ocen'!C16&COUNTIF('Śledzenie ocen'!$C$4:C16,'Śledzenie ocen'!C16)","v":"0"}]
[null,14,{"$f":"'Śledzenie ocen'!C17&COUNTIF('Śledzenie ocen'!$C$4:C17,'Śledzenie ocen'!C17)","v":"0"}]
[null,15,{"$f":"'Śledzenie ocen'!C18&COUNTIF('Śledzenie ocen'!$C$4:C18,'Śledzenie ocen'!C18)","v":"0"}]
[null,16,{"$f":"'Śledzenie ocen'!C19&COUNTIF('Śledzenie ocen'!$C$4:C19,'Śledzenie ocen'!C19)","v":"0"}]
[null,17,{"$f":"'Śledzenie ocen'!C20&COUNTIF('Śledzenie ocen'!$C$4:C20,'Śledzenie ocen'!C20)","v":"0"}]
[null,18,{"$f":"'Śledzenie ocen'!C21&COUNTIF('Śledzenie ocen'!$C$4:C21,'Śledzenie ocen'!C21)","v":"0"}]
[null,19,{"$f":"'Śledzenie ocen'!C22&COUNTIF('Śledzenie ocen'!$C$4:C22,'Śledzenie ocen'!C22)","v":"0"}]
[null,20,{"$f":"'Śledzenie ocen'!C23&COUNTIF('Śledzenie ocen'!$C$4:C23,'Śledzenie ocen'!C23)","v":"0"}]
[null,21,{"$f":"'Śledzenie ocen'!C24&COUNTIF('Śledzenie ocen'!$C$4:C24,'Śledzenie ocen'!C24)","v":"0"}]
[null,22,{"$f":"'Śledzenie ocen'!C25&COUNTIF('Śledzenie ocen'!$C$4:C25,'Śledzenie ocen'!C25)","v":"0"}]
[null,23,{"$f":"'Śledzenie ocen'!C26&COUNTIF('Śledzenie ocen'!$C$4:C26,'Śledzenie ocen'!C26)","v":"0"}]
[null,24,{"$f":"'Śledzenie ocen'!C27&COUNTIF('Śledzenie ocen'!$C$4:C27,'Śledzenie ocen'!C27)","v":"0"}]
[null,25,{"$f":"'Śledzenie ocen'!C28&COUNTIF('Śledzenie ocen'!$C$4:C28,'Śledzenie ocen'!C28)","v":"0"}]
[null,26,{"$f":"'Śledzenie ocen'!C29&COUNTIF('Śledzenie ocen'!$C$4:C29,'Śledzenie ocen'!C29)","v":"0"}]
[null,27,{"$f":"'Śledzenie ocen'!C30&COUNTIF('Śledzenie ocen'!$C$4:C30,'Śledzenie ocen'!C30)","v":"0"}]
[null,28,{"$f":"'Śledzenie ocen'!C31&COUNTIF('Śledzenie ocen'!$C$4:C31,'Śledzenie ocen'!C31)","v":"0"}]
[null,29,{"$f":"'Śledzenie ocen'!C32&COUNTIF('Śledzenie ocen'!$C$4:C32,'Śledzenie ocen'!C32)","v":"0"}]
[null,30,{"$f":"'Śledzenie ocen'!C33&COUNTIF('Śledzenie ocen'!$C$4:C33,'Śledzenie ocen'!C33)","v":"0"}]
[null,31,{"$f":"'Śledzenie ocen'!C34&COUNTIF('Śledzenie ocen'!$C$4:C34,'Śledzenie ocen'!C34)","v":"0"}]
[null,32,{"$f":"'Śledzenie ocen'!C35&COUNTIF('Śledzenie ocen'!$C$4:C35,'Śledzenie ocen'!C35)","v":"0"}]
[null,33,{"$f":"'Śledzenie ocen'!C36&COUNTIF('Śledzenie ocen'!$C$4:C36,'Śledzenie ocen'!C36)","v":"0"}]
[null,34,{"$f":"'Śledzenie ocen'!C37&COUNTIF('Śledzenie ocen'!$C$4:C37,'Śledzenie ocen'!C37)","v":"0"}]
[null,35,{"$f":"'Śledzenie ocen'!C38&COUNTIF('Śledzenie ocen'!$C$4:C38,'Śledzenie ocen'!C38)","v":"0"}]
[null,36,{"$f":"'Śledzenie ocen'!C39&COUNTIF('Śledzenie ocen'!$C$4:C39,'Śledzenie ocen'!C39)","v":"0"}]
[null,37,{"$f":"'Śledzenie ocen'!C40&COUNTIF('Śledzenie ocen'!$C$4:C40,'Śledzenie ocen'!C40)","v":"0"}]
[null,38,{"$f":"'Śledzenie ocen'!C41&COUNTIF('Śledzenie ocen'!$C$4:C41,'Śledzenie ocen'!C41)","v":"0"}]
[null,39,{"$f":"'Śledzenie ocen'!C42&COUNTIF('Śledzenie ocen'!$C$4:C42,'Śledzenie ocen'!C42)","v":"0"}]
[null,40,{"$f":"'Śledzenie ocen'!C43&COUNTIF('Śledzenie ocen'!$C$4:C43,'Śledzenie ocen'!C43)","v":"0"}]
[null,41,{"$f":"'Śledzenie ocen'!C44&COUNTIF('Śledzenie ocen'!$C$4:C44,'Śledzenie ocen'!C44)","v":"0"}]
[null,42,{"$f":"'Śledzenie ocen'!C45&COUNTIF('Śledzenie ocen'!$C$4:C45,'Śledzenie ocen'!C45)","v":"0"}]
[null,43,{"$f":"'Śledzenie ocen'!C46&COUNTIF('Śledzenie ocen'!$C$4:C46,'Śledzenie ocen'!C46)","v":"0"}]
[null,44,{"$f":"'Śledzenie ocen'!C47&COUNTIF('Śledzenie ocen'!$C$4:C47,'Śledzenie ocen'!C47)","v":"0"}]
[null,45,{"$f":"'Śledzenie ocen'!C48&COUNTIF('Śledzenie ocen'!$C$4:C48,'Śledzenie ocen'!C48)","v":"0"}]
[null,46,{"$f":"'Śledzenie ocen'!C49&COUNTIF('Śledzenie ocen'!$C$4:C49,'Śledzenie ocen'!C49)","v":"0"}]
[null,47,{"$f":"'Śledzenie ocen'!C50&COUNTIF('Śledzenie ocen'!$C$4:C50,'Śledzenie ocen'!C50)","v":"0"}]
[null,48,{"$f":"'Śledzenie ocen'!C51&COUNTIF('Śledzenie ocen'!$C$4:C51,'Śledzenie ocen'!C51)","v":"0"}]
[null,49,{"$f":"'Śledzenie ocen'!C52&COUNTIF('Śledzenie ocen'!$C$4:C52,'Śledzenie ocen'!C52)","v":"0"}]
[null,50,{"$f":"'Śledzenie ocen'!C53&COUNTIF('Śledzenie ocen'!$C$4:C53,'Śledzenie ocen'!C53)","v":"0"}]
[null,51,{"$f":"'Śledzenie ocen'!C54&COUNTIF('Śledzenie ocen'!$C$4:C54,'Śledzenie ocen'!C54)","v":"0"}]
[null,52,{"$f":"'Śledzenie ocen'!C55&COUNTIF('Śledzenie ocen'!$C$4:C55,'Śledzenie ocen'!C55)","v":"0"}]
[null,53,{"$f":"'Śledzenie ocen'!C56&COUNTIF('Śledzenie ocen'!$C$4:C56,'Śledzenie ocen'!C56)","v":"0"}]
[null,54,{"$f":"'Śledzenie ocen'!C57&COUNTIF('Śledzenie ocen'!$C$4:C57,'Śledzenie ocen'!C57)","v":"0"}]
[null,55,{"$f":"'Śledzenie ocen'!C58&COUNTIF('Śledzenie ocen'!$C$4:C58,'Śledzenie ocen'!C58)","v":"0"}]
[null,56,{"$f":"'Śledzenie ocen'!C59&COUNTIF('Śledzenie ocen'!$C$4:C59,'Śledzenie ocen'!C59)","v":"0"}]
[null,57,{"$f":"'Śledzenie ocen'!C60&COUNTIF('Śledzenie ocen'!$C$4:C60,'Śledzenie ocen'!C60)","v":"0"}]
[null,58,{"$f":"'Śledzenie ocen'!C61&COUNTIF('Śledzenie ocen'!$C$4:C61,'Śledzenie ocen'!C61)","v":"0"}]
[null,59,{"$f":"'Śledzenie ocen'!C62&COUNTIF('Śledzenie ocen'!$C$4:C62,'Śledzenie ocen'!C62)","v":"0"}]
[null,60,{"$f":"'Śledzenie ocen'!C63&COUNTIF('Śledzenie ocen'!$C$4:C63,'Śledzenie ocen'!C63)","v":"0"}]
[null,61,{"$f":"'Śledzenie ocen'!C64&COUNTIF('Śledzenie ocen'!$C$4:C64,'Śledzenie ocen'!C64)","v":"0"}]
[null,62,{"$f":"'Śledzenie ocen'!C65&COUNTIF('Śledzenie ocen'!$C$4:C65,'Śledzenie ocen'!C65)","v":"0"}]
[null,63,{"$f":"'Śledzenie ocen'!C66&COUNTIF('Śledzenie ocen'!$C$4:C66,'Śledzenie ocen'!C66)","v":"0"}]
[null,64,{"$f":"'Śledzenie ocen'!C67&COUNTIF('Śledzenie ocen'!$C$4:C67,'Śledzenie ocen'!C67)","v":"0"}]
[null,65,{"$f":"'Śledzenie ocen'!C68&COUNTIF('Śledzenie ocen'!$C$4:C68,'Śledzenie ocen'!C68)","v":"0"}]
[null,66,{"$f":"'Śledzenie ocen'!C69&COUNTIF('Śledzenie ocen'!$C$4:C69,'Śledzenie ocen'!C69)","v":"0"}]
[null,67,{"$f":"'Śledzenie ocen'!C70&COUNTIF('Śledzenie ocen'!$C$4:C70,'Śledzenie ocen'!C70)","v":"0"}]
[null,68,{"$f":"'Śledzenie ocen'!C71&COUNTIF('Śledzenie ocen'!$C$4:C71,'Śledzenie ocen'!C71)","v":"0"}]
[null,69,{"$f":"'Śledzenie ocen'!C72&COUNTIF('Śledzenie ocen'!$C$4:C72,'Śledzenie ocen'!C72)","v":"0"}]
[null,70,{"$f":"'Śledzenie ocen'!C73&COUNTIF('Śledzenie ocen'!$C$4:C73,'Śledzenie ocen'!C73)","v":"0"}]
[null,71,{"$f":"'Śledzenie ocen'!C74&COUNTIF('Śledzenie ocen'!$C$4:C74,'Śledzenie ocen'!C74)","v":"0"}]
[null,72,{"$f":"'Śledzenie ocen'!C75&COUNTIF('Śledzenie ocen'!$C$4:C75,'Śledzenie ocen'!C75)","v":"0"}]
[null,73,{"$f":"'Śledzenie ocen'!C76&COUNTIF('Śledzenie ocen'!$C$4:C76,'Śledzenie ocen'!C76)","v":"0"}]
[null,74,{"$f":"'Śledzenie ocen'!C77&COUNTIF('Śledzenie ocen'!$C$4:C77,'Śledzenie ocen'!C77)","v":"0"}]
[null,75,{"$f":"'Śledzenie ocen'!C78&COUNTIF('Śledzenie ocen'!$C$4:C78,'Śledzenie ocen'!C78)","v":"0"}]
[null,76,{"$f":"'Śledzenie ocen'!C79&COUNTIF('Śledzenie ocen'!$C$4:C79,'Śledzenie ocen'!C79)","v":"0"}]
[null,77,{"$f":"'Śledzenie ocen'!C80&COUNTIF('Śledzenie ocen'!$C$4:C80,'Śledzenie ocen'!C80)","v":"0"}]
[null,78,{"$f":"'Śledzenie ocen'!C81&COUNTIF('Śledzenie ocen'!$C$4:C81,'Śledzenie ocen'!C81)","v":"0"}]
[null,79,{"$f":"'Śledzenie ocen'!C82&COUNTIF('Śledzenie ocen'!$C$4:C82,'Śledzenie ocen'!C82)","v":"0"}]
[null,80,{"$f":"'Śledzenie ocen'!C83&COUNTIF('Śledzenie ocen'!$C$4:C83,'Śledzenie ocen'!C83)","v":"0"}]
[null,81,{"$f":"'Śledzenie ocen'!C84&COUNTIF('Śledzenie ocen'!$C$4:C84,'Śledzenie ocen'!C84)","v":"0"}]
[null,82,{"$f":"'Śledzenie ocen'!C85&COUNTIF('Śledzenie ocen'!$C$4:C85,'Śledzenie ocen'!C85)","v":"0"}]
[null,83,{"$f":"'Śledzenie ocen'!C86&COUNTIF('Śledzenie ocen'!$C$4:C86,'Śledzenie ocen'!C86)","v":"0"}]
[null,84,{"$f":"'Śledzenie ocen'!C87&COUNTIF('Śledzenie ocen'!$C$4:C87,'Śledzenie ocen'!C87)","v":"0"}]
[null,85,{"$f":"'Śledzenie ocen'!C88&COUNTIF('Śledzenie ocen'!$C$4:C88,'Śledzenie ocen'!C88)","v":"0"}]
[null,86,{"$f":"'Śledzenie ocen'!C89&COUNTIF('Śledzenie ocen'!$C$4:C89,'Śledzenie ocen'!C89)","v":"0"}]
[null,87,{"$f":"'Śledzenie ocen'!C90&COUNTIF('Śledzenie ocen'!$C$4:C90,'Śledzenie ocen'!C90)","v":"0"}]
[null,88,{"$f":"'Śledzenie ocen'!C91&COUNTIF('Śledzenie ocen'!$C$4:C91,'Śledzenie ocen'!C91)","v":"0"}]
[null,89,{"$f":"'Śledzenie ocen'!C92&COUNTIF('Śledzenie ocen'!$C$4:C92,'Śledzenie ocen'!C92)","v":"0"}]
[null,90,{"$f":"'Śledzenie ocen'!C93&COUNTIF('Śledzenie ocen'!$C$4:C93,'Śledzenie ocen'!C93)","v":"0"}]
[null,91,{"$f":"'Śledzenie ocen'!C94&COUNTIF('Śledzenie ocen'!$C$4:C94,'Śledzenie ocen'!C94)","v":"0"}]
[null,92,{"$f":"'Śledzenie ocen'!C95&COUNTIF('Śledzenie ocen'!$C$4:C95,'Śledzenie ocen'!C95)","v":"0"}]
[null,93,{"$f":"'Śledzenie ocen'!C96&COUNTIF('Śledzenie ocen'!$C$4:C96,'Śledzenie ocen'!C96)","v":"0"}]
[null,94,{"$f":"'Śledzenie ocen'!C97&COUNTIF('Śledzenie ocen'!$C$4:C97,'Śledzenie ocen'!C97)","v":"0"}]
[null,95,{"$f":"'Śledzenie ocen'!C98&COUNTIF('Śledzenie ocen'!$C$4:C98,'Śledzenie ocen'!C98)","v":"0"}]
[null,96,{"$f":"'Śledzenie ocen'!C99&COUNTIF('Śledzenie ocen'!$C$4:C99,'Śledzenie ocen'!C99)","v":"0"}]
[null,97,{"$f":"'Śledzenie ocen'!C100&COUNTIF('Śledzenie ocen'!$C$4:C100,'Śledzenie ocen'!C100)","v":"0"}]
[null,98,{"$f":"'Śledzenie ocen'!C101&COUNTIF('Śledzenie ocen'!$C$4:C101,'Śledzenie ocen'!C101)","v":"0"}]
[null,99,{"$f":"'Śledzenie ocen'!C102&COUNTIF('Śledzenie ocen'!$C$4:C102,'Śledzenie ocen'!C102)","v":"0"}]
[null,100,{"$f":"'Śledzenie ocen'!C103&COUNTIF('Śledzenie ocen'!$C$4:C103,'Śledzenie ocen'!C103)","v":"0"}]
[null,101,{"$f":"'Śledzenie ocen'!C104&COUNTIF('Śledzenie ocen'!$C$4:C104,'Śledzenie ocen'!C104)","v":"0"}]
[null,102,{"$f":"'Śledzenie ocen'!C105&COUNTIF('Śledzenie ocen'!$C$4:C105,'Śledzenie ocen'!C105)","v":"0"}]
[null,103,{"$f":"'Śledzenie ocen'!C106&COUNTIF('Śledzenie ocen'!$C$4:C106,'Śledzenie ocen'!C106)","v":"0"}]
[null,104,{"$f":"'Śledzenie ocen'!C107&COUNTIF('Śledzenie ocen'!$C$4:C107,'Śledzenie ocen'!C107)","v":"0"}]
[null,105,{"$f":"'Śledzenie ocen'!C108&COUNTIF('Śledzenie ocen'!$C$4:C108,'Śledzenie ocen'!C108)","v":"0"}]
[null,106,{"$f":"'Śledzenie ocen'!C109&COUNTIF('Śledzenie ocen'!$C$4:C109,'Śledzenie ocen'!C109)","v":"0"}]
[null,107,{"$f":"'Śledzenie ocen'!C110&COUNTIF('Śledzenie ocen'!$C$4:C110,'Śledzenie ocen'!C110)","v":"0"}]
[null,108,{"$f":"'Śledzenie ocen'!C111&COUNTIF('Śledzenie ocen'!$C$4:C111,'Śledzenie ocen'!C111)","v":"0"}]
[null,109,{"$f":"'Śledzenie ocen'!C112&COUNTIF('Śledzenie ocen'!$C$4:C112,'Śledzenie ocen'!C112)","v":"0"}]
[null,110,{"$f":"'Śledzenie ocen'!C113&COUNTIF('Śledzenie ocen'!$C$4:C113,'Śledzenie ocen'!C113)","v":"0"}]
[null,111,{"$f":"'Śledzenie ocen'!C114&COUNTIF('Śledzenie ocen'!$C$4:C114,'Śledzenie ocen'!C114)","v":"0"}]
[null,112,{"$f":"'Śledzenie ocen'!C115&COUNTIF('Śledzenie ocen'!$C$4:C115,'Śledzenie ocen'!C115)","v":"0"}]
[null,113,{"$f":"'Śledzenie ocen'!C116&COUNTIF('Śledzenie ocen'!$C$4:C116,'Śledzenie ocen'!C116)","v":"0"}]
[null,114,{"$f":"'Śledzenie ocen'!C117&COUNTIF('Śledzenie ocen'!$C$4:C117,'Śledzenie ocen'!C117)","v":"0"}]
[null,115,{"$f":"'Śledzenie ocen'!C118&COUNTIF('Śledzenie ocen'!$C$4:C118,'Śledzenie ocen'!C118)","v":"0"}]
[null,116,{"$f":"'Śledzenie ocen'!C119&COUNTIF('Śledzenie ocen'!$C$4:C119,'Śledzenie ocen'!C119)","v":"0"}]
[null,117,{"$f":"'Śledzenie ocen'!C120&COUNTIF('Śledzenie ocen'!$C$4:C120,'Śledzenie ocen'!C120)","v":"0"}]
[null,118,{"$f":"'Śledzenie ocen'!C121&COUNTIF('Śledzenie ocen'!$C$4:C121,'Śledzenie ocen'!C121)","v":"0"}]
[null,119,{"$f":"'Śledzenie ocen'!C122&COUNTIF('Śledzenie ocen'!$C$4:C122,'Śledzenie ocen'!C122)","v":"0"}]
[null,120,{"$f":"'Śledzenie ocen'!C123&COUNTIF('Śledzenie ocen'!$C$4:C123,'Śledzenie ocen'!C123)","v":"0"}]
[null,121,{"$f":"'Śledzenie ocen'!C124&COUNTIF('Śledzenie ocen'!$C$4:C124,'Śledzenie ocen'!C124)","v":"0"}]
[null,122,{"$f":"'Śledzenie ocen'!C125&COUNTIF('Śledzenie ocen'!$C$4:C125,'Śledzenie ocen'!C125)","v":"0"}]
[null,123,{"$f":"'Śledzenie ocen'!C126&COUNTIF('Śledzenie ocen'!$C$4:C126,'Śledzenie ocen'!C126)","v":"0"}]
[null,124,{"$f":"'Śledzenie ocen'!C127&COUNTIF('Śledzenie ocen'!$C$4:C127,'Śledzenie ocen'!C127)","v":"0"}]
[null,125,{"$f":"'Śledzenie ocen'!C128&COUNTIF('Śledzenie ocen'!$C$4:C128,'Śledzenie ocen'!C128)","v":"0"}]
[null,126,{"$f":"'Śledzenie ocen'!C129&COUNTIF('Śledzenie ocen'!$C$4:C129,'Śledzenie ocen'!C129)","v":"0"}]
[null,127,{"$f":"'Śledzenie ocen'!C130&COUNTIF('Śledzenie ocen'!$C$4:C130,'Śledzenie ocen'!C130)","v":"0"}]
[null,128,{"$f":"'Śledzenie ocen'!C131&COUNTIF('Śledzenie ocen'!$C$4:C131,'Śledzenie ocen'!C131)","v":"0"}]
[null,129,{"$f":"'Śledzenie ocen'!C132&COUNTIF('Śledzenie ocen'!$C$4:C132,'Śledzenie ocen'!C132)","v":"0"}]
[null,130,{"$f":"'Śledzenie ocen'!C133&COUNTIF('Śledzenie ocen'!$C$4:C133,'Śledzenie ocen'!C133)","v":"0"}]
[null,131,{"$f":"'Śledzenie ocen'!C134&COUNTIF('Śledzenie ocen'!$C$4:C134,'Śledzenie ocen'!C134)","v":"0"}]
[null,132,{"$f":"'Śledzenie ocen'!C135&COUNTIF('Śledzenie ocen'!$C$4:C135,'Śledzenie ocen'!C135)","v":"0"}]
[null,133,{"$f":"'Śledzenie ocen'!C136&COUNTIF('Śledzenie ocen'!$C$4:C136,'Śledzenie ocen'!C136)","v":"0"}]
[null,134,{"$f":"'Śledzenie ocen'!C137&COUNTIF('Śledzenie ocen'!$C$4:C137,'Śledzenie ocen'!C137)","v":"0"}]
[null,135,{"$f":"'Śledzenie ocen'!C138&COUNTIF('Śledzenie ocen'!$C$4:C138,'Śledzenie ocen'!C138)","v":"0"}]
[null,136,{"$f":"'Śledzenie ocen'!C139&COUNTIF('Śledzenie ocen'!$C$4:C139,'Śledzenie ocen'!C139)","v":"0"}]
[null,137,{"$f":"'Śledzenie ocen'!C140&COUNTIF('Śledzenie ocen'!$C$4:C140,'Śledzenie ocen'!C140)","v":"0"}]
[null,138,{"$f":"'Śledzenie ocen'!C141&COUNTIF('Śledzenie ocen'!$C$4:C141,'Śledzenie ocen'!C141)","v":"0"}]
[null,139,{"$f":"'Śledzenie ocen'!C142&COUNTIF('Śledzenie ocen'!$C$4:C142,'Śledzenie ocen'!C142)","v":"0"}]
[null,140,{"$f":"'Śledzenie ocen'!C143&COUNTIF('Śledzenie ocen'!$C$4:C143,'Śledzenie ocen'!C143)","v":"0"}]
[null,141,{"$f":"'Śledzenie ocen'!C144&COUNTIF('Śledzenie ocen'!$C$4:C144,'Śledzenie ocen'!C144)","v":"0"}]
[null,142,{"$f":"'Śledzenie ocen'!C145&COUNTIF('Śledzenie ocen'!$C$4:C145,'Śledzenie ocen'!C145)","v":"0"}]
[null,143,{"$f":"'Śledzenie ocen'!C146&COUNTIF('Śledzenie ocen'!$C$4:C146,'Śledzenie ocen'!C146)","v":"0"}]
[null,144,{"$f":"'Śledzenie ocen'!C147&COUNTIF('Śledzenie ocen'!$C$4:C147,'Śledzenie ocen'!C147)","v":"0"}]
[null,145,{"$f":"'Śledzenie ocen'!C148&COUNTIF('Śledzenie ocen'!$C$4:C148,'Śledzenie ocen'!C148)","v":"0"}]
[null,146,{"$f":"'Śledzenie ocen'!C149&COUNTIF('Śledzenie ocen'!$C$4:C149,'Śledzenie ocen'!C149)","v":"0"}]
[null,147,{"$f":"'Śledzenie ocen'!C150&COUNTIF('Śledzenie ocen'!$C$4:C150,'Śledzenie ocen'!C150)","v":"0"}]
[null,148,{"$f":"'Śledzenie ocen'!C151&COUNTIF('Śledzenie ocen'!$C$4:C151,'Śledzenie ocen'!C151)","v":"0"}]
[null,149,{"$f":"'Śledzenie ocen'!C152&COUNTIF('Śledzenie ocen'!$C$4:C152,'Śledzenie ocen'!C152)","v":"0"}]
[null,150,{"$f":"'Śledzenie ocen'!C153&COUNTIF('Śledzenie ocen'!$C$4:C153,'Śledzenie ocen'!C153)","v":"0"}]
[null,151,{"$f":"'Śledzenie ocen'!C154&COUNTIF('Śledzenie ocen'!$C$4:C154,'Śledzenie ocen'!C154)","v":"0"}]
[null,152,{"$f":"'Śledzenie ocen'!C155&COUNTIF('Śledzenie ocen'!$C$4:C155,'Śledzenie ocen'!C155)","v":"0"}]
[null,153,{"$f":"'Śledzenie ocen'!C156&COUNTIF('Śledzenie ocen'!$C$4:C156,'Śledzenie ocen'!C156)","v":"0"}]
[null,154,{"$f":"'Śledzenie ocen'!C157&COUNTIF('Śledzenie ocen'!$C$4:C157,'Śledzenie ocen'!C157)","v":"0"}]
[null,155,{"$f":"'Śledzenie ocen'!C158&COUNTIF('Śledzenie ocen'!$C$4:C158,'Śledzenie ocen'!C158)","v":"0"}]
[null,156,{"$f":"'Śledzenie ocen'!C159&COUNTIF('Śledzenie ocen'!$C$4:C159,'Śledzenie ocen'!C159)","v":"0"}]
[null,157,{"$f":"'Śledzenie ocen'!C160&COUNTIF('Śledzenie ocen'!$C$4:C160,'Śledzenie ocen'!C160)","v":"0"}]
[null,158,{"$f":"'Śledzenie ocen'!C161&COUNTIF('Śledzenie ocen'!$C$4:C161,'Śledzenie ocen'!C161)","v":"0"}]
[null,159,{"$f":"'Śledzenie ocen'!C162&COUNTIF('Śledzenie ocen'!$C$4:C162,'Śledzenie ocen'!C162)","v":"0"}]
[null,160,{"$f":"'Śledzenie ocen'!C163&COUNTIF('Śledzenie ocen'!$C$4:C163,'Śledzenie ocen'!C163)","v":"0"}]
[null,161,{"$f":"'Śledzenie ocen'!C164&COUNTIF('Śledzenie ocen'!$C$4:C164,'Śledzenie ocen'!C164)","v":"0"}]
[null,162,{"$f":"'Śledzenie ocen'!C165&COUNTIF('Śledzenie ocen'!$C$4:C165,'Śledzenie ocen'!C165)","v":"0"}]
[null,163,{"$f":"'Śledzenie ocen'!C166&COUNTIF('Śledzenie ocen'!$C$4:C166,'Śledzenie ocen'!C166)","v":"0"}]
[null,164,{"$f":"'Śledzenie ocen'!C167&COUNTIF('Śledzenie ocen'!$C$4:C167,'Śledzenie ocen'!C167)","v":"0"}]
[null,165,{"$f":"'Śledzenie ocen'!C168&COUNTIF('Śledzenie ocen'!$C$4:C168,'Śledzenie ocen'!C168)","v":"0"}]
[null,166,{"$f":"'Śledzenie ocen'!C169&COUNTIF('Śledzenie ocen'!$C$4:C169,'Śledzenie ocen'!C169)","v":"0"}]
[null,167,{"$f":"'Śledzenie ocen'!C170&COUNTIF('Śledzenie ocen'!$C$4:C170,'Śledzenie ocen'!C170)","v":"0"}]
[null,168,{"$f":"'Śledzenie ocen'!C171&COUNTIF('Śledzenie ocen'!$C$4:C171,'Śledzenie ocen'!C171)","v":"0"}]
[null,169,{"$f":"'Śledzenie ocen'!C172&COUNTIF('Śledzenie ocen'!$C$4:C172,'Śledzenie ocen'!C172)","v":"0"}]
[null,170,{"$f":"'Śledzenie ocen'!C173&COUNTIF('Śledzenie ocen'!$C$4:C173,'Śledzenie ocen'!C173)","v":"0"}]
[null,171,{"$f":"'Śledzenie ocen'!C174&COUNTIF('Śledzenie ocen'!$C$4:C174,'Śledzenie ocen'!C174)","v":"0"}]
[null,172,{"$f":"'Śledzenie ocen'!C175&COUNTIF('Śledzenie ocen'!$C$4:C175,'Śledzenie ocen'!C175)","v":"0"}]
[null,173,{"$f":"'Śledzenie ocen'!C176&COUNTIF('Śledzenie ocen'!$C$4:C176,'Śledzenie ocen'!C176)","v":"0"}]
[null,174,{"$f":"'Śledzenie ocen'!C177&COUNTIF('Śledzenie ocen'!$C$4:C177,'Śledzenie ocen'!C177)","v":"0"}]
[null,175,{"$f":"'Śledzenie ocen'!C178&COUNTIF('Śledzenie ocen'!$C$4:C178,'Śledzenie ocen'!C178)","v":"0"}]
[null,176,{"$f":"'Śledzenie ocen'!C179&COUNTIF('Śledzenie ocen'!$C$4:C179,'Śledzenie ocen'!C179)","v":"0"}]
[null,177,{"$f":"'Śledzenie ocen'!C180&COUNTIF('Śledzenie ocen'!$C$4:C180,'Śledzenie ocen'!C180)","v":"0"}]
[null,178,{"$f":"'Śledzenie ocen'!C181&COUNTIF('Śledzenie ocen'!$C$4:C181,'Śledzenie ocen'!C181)","v":"0"}]
[null,179,{"$f":"'Śledzenie ocen'!C182&COUNTIF('Śledzenie ocen'!$C$4:C182,'Śledzenie ocen'!C182)","v":"0"}]
[null,180,{"$f":"'Śledzenie ocen'!C183&COUNTIF('Śledzenie ocen'!$C$4:C183,'Śledzenie ocen'!C183)","v":"0"}]
[null,181,{"$f":"'Śledzenie ocen'!C184&COUNTIF('Śledzenie ocen'!$C$4:C184,'Śledzenie ocen'!C184)","v":"0"}]
[null,182,{"$f":"'Śledzenie ocen'!C185&COUNTIF('Śledzenie ocen'!$C$4:C185,'Śledzenie ocen'!C185)","v":"0"}]
[null,183,{"$f":"'Śledzenie ocen'!C186&COUNTIF('Śledzenie ocen'!$C$4:C186,'Śledzenie ocen'!C186)","v":"0"}]
[null,184,{"$f":"'Śledzenie ocen'!C187&COUNTIF('Śledzenie ocen'!$C$4:C187,'Śledzenie ocen'!C187)","v":"0"}]
[null,185,{"$f":"'Śledzenie ocen'!C188&COUNTIF('Śledzenie ocen'!$C$4:C188,'Śledzenie ocen'!C188)","v":"0"}]
[null,186,{"$f":"'Śledzenie ocen'!C189&COUNTIF('Śledzenie ocen'!$C$4:C189,'Śledzenie ocen'!C189)","v":"0"}]
[null,187,{"$f":"'Śledzenie ocen'!C190&COUNTIF('Śledzenie ocen'!$C$4:C190,'Śledzenie ocen'!C190)","v":"0"}]
[null,188,{"$f":"'Śledzenie ocen'!C191&COUNTIF('Śledzenie ocen'!$C$4:C191,'Śledzenie ocen'!C191)","v":"0"}]
[null,189,{"$f":"'Śledzenie ocen'!C192&COUNTIF('Śledzenie ocen'!$C$4:C192,'Śledzenie ocen'!C192)","v":"0"}]
[null,190,{"$f":"'Śledzenie ocen'!C193&COUNTIF('Śledzenie ocen'!$C$4:C193,'Śledzenie ocen'!C193)","v":"0"}]
[null,191,{"$f":"'Śledzenie ocen'!C194&COUNTIF('Śledzenie ocen'!$C$4:C194,'Śledzenie ocen'!C194)","v":"0"}]
[null,192,{"$f":"'Śledzenie ocen'!C195&COUNTIF('Śledzenie ocen'!$C$4:C195,'Śledzenie ocen'!C195)","v":"0"}]
[null,193,{"$f":"'Śledzenie ocen'!C196&COUNTIF('Śledzenie ocen'!$C$4:C196,'Śledzenie ocen'!C196)","v":"0"}]
[null,194,{"$f":"'Śledzenie ocen'!C197&COUNTIF('Śledzenie ocen'!$C$4:C197,'Śledzenie ocen'!C197)","v":"0"}]
[null,195,{"$f":"'Śledzenie ocen'!C198&COUNTIF('Śledzenie ocen'!$C$4:C198,'Śledzenie ocen'!C198)","v":"0"}]
[null,196,{"$f":"'Śledzenie ocen'!C199&COUNTIF('Śledzenie ocen'!$C$4:C199,'Śledzenie ocen'!C199)","v":"0"}]
[null,197,{"$f":"'Śledzenie ocen'!C200&COUNTIF('Śledzenie ocen'!$C$4:C200,'Śledzenie ocen'!C200)","v":"0"}]
[null,198,{"$f":"'Śledzenie ocen'!C201&COUNTIF('Śledzenie ocen'!$C$4:C201,'Śledzenie ocen'!C201)","v":"0"}]
[null,199,{"$f":"'Śledzenie ocen'!C202&COUNTIF('Śledzenie ocen'!$C$4:C202,'Śledzenie ocen'!C202)","v":"0"}]
[null,200,{"$f":"'Śledzenie ocen'!C203&COUNTIF('Śledzenie ocen'!$C$4:C203,'Śledzenie ocen'!C203)","v":"0"}]
[null,201,{"$f":"'Śledzenie ocen'!C204&COUNTIF('Śledzenie ocen'!$C$4:C204,'Śledzenie ocen'!C204)","v":"0"}]
[null,202,{"$f":"'Śledzenie ocen'!C205&COUNTIF('Śledzenie ocen'!$C$4:C205,'Śledzenie ocen'!C205)","v":"0"}]
[null,203,{"$f":"'Śledzenie ocen'!C206&COUNTIF('Śledzenie ocen'!$C$4:C206,'Śledzenie ocen'!C206)","v":"0"}]
[null,204,{"$f":"'Śledzenie ocen'!C207&COUNTIF('Śledzenie ocen'!$C$4:C207,'Śledzenie ocen'!C207)","v":"0"}]
[null,205,{"$f":"'Śledzenie ocen'!C208&COUNTIF('Śledzenie ocen'!$C$4:C208,'Śledzenie ocen'!C208)","v":"0"}]
[null,206,{"$f":"'Śledzenie ocen'!C209&COUNTIF('Śledzenie ocen'!$C$4:C209,'Śledzenie ocen'!C209)","v":"0"}]
[null,207,{"$f":"'Śledzenie ocen'!C210&COUNTIF('Śledzenie ocen'!$C$4:C210,'Śledzenie ocen'!C210)","v":"0"}]
[null,208,{"$f":"'Śledzenie ocen'!C211&COUNTIF('Śledzenie ocen'!$C$4:C211,'Śledzenie ocen'!C211)","v":"0"}]
[null,209,{"$f":"'Śledzenie ocen'!C212&COUNTIF('Śledzenie ocen'!$C$4:C212,'Śledzenie ocen'!C212)","v":"0"}]
[null,210,{"$f":"'Śledzenie ocen'!C213&COUNTIF('Śledzenie ocen'!$C$4:C213,'Śledzenie ocen'!C213)","v":"0"}]
[null,211,{"$f":"'Śledzenie ocen'!C214&COUNTIF('Śledzenie ocen'!$C$4:C214,'Śledzenie ocen'!C214)","v":"0"}]
[null,212,{"$f":"'Śledzenie ocen'!C215&COUNTIF('Śledzenie ocen'!$C$4:C215,'Śledzenie ocen'!C215)","v":"0"}]
[null,213,{"$f":"'Śledzenie ocen'!C216&COUNTIF('Śledzenie ocen'!$C$4:C216,'Śledzenie ocen'!C216)","v":"0"}]
[null,214,{"$f":"'Śledzenie ocen'!C217&COUNTIF('Śledzenie ocen'!$C$4:C217,'Śledzenie ocen'!C217)","v":"0"}]
[null,215,{"$f":"'Śledzenie ocen'!C218&COUNTIF('Śledzenie ocen'!$C$4:C218,'Śledzenie ocen'!C218)","v":"0"}]
[null,216,{"$f":"'Śledzenie ocen'!C219&COUNTIF('Śledzenie ocen'!$C$4:C219,'Śledzenie ocen'!C219)","v":"0"}]
[null,217,{"$f":"'Śledzenie ocen'!C220&COUNTIF('Śledzenie ocen'!$C$4:C220,'Śledzenie ocen'!C220)","v":"0"}]
[null,218,{"$f":"'Śledzenie ocen'!C221&COUNTIF('Śledzenie ocen'!$C$4:C221,'Śledzenie ocen'!C221)","v":"0"}]
[null,219,{"$f":"'Śledzenie ocen'!C222&COUNTIF('Śledzenie ocen'!$C$4:C222,'Śledzenie ocen'!C222)","v":"0"}]
[null,220,{"$f":"'Śledzenie ocen'!C223&COUNTIF('Śledzenie ocen'!$C$4:C223,'Śledzenie ocen'!C223)","v":"0"}]
[null,221,{"$f":"'Śledzenie ocen'!C224&COUNTIF('Śledzenie ocen'!$C$4:C224,'Śledzenie ocen'!C224)","v":"0"}]
[null,222,{"$f":"'Śledzenie ocen'!C225&COUNTIF('Śledzenie ocen'!$C$4:C225,'Śledzenie ocen'!C225)","v":"0"}]
[null,223,{"$f":"'Śledzenie ocen'!C226&COUNTIF('Śledzenie ocen'!$C$4:C226,'Śledzenie ocen'!C226)","v":"0"}]
[null,224,{"$f":"'Śledzenie ocen'!C227&COUNTIF('Śledzenie ocen'!$C$4:C227,'Śledzenie ocen'!C227)","v":"0"}]
[null,225,{"$f":"'Śledzenie ocen'!C228&COUNTIF('Śledzenie ocen'!$C$4:C228,'Śledzenie ocen'!C228)","v":"0"}]
[null,226,{"$f":"'Śledzenie ocen'!C229&COUNTIF('Śledzenie ocen'!$C$4:C229,'Śledzenie ocen'!C229)","v":"0"}]
[null,227,{"$f":"'Śledzenie ocen'!C230&COUNTIF('Śledzenie ocen'!$C$4:C230,'Śledzenie ocen'!C230)","v":"0"}]
[null,228,{"$f":"'Śledzenie ocen'!C231&COUNTIF('Śledzenie ocen'!$C$4:C231,'Śledzenie ocen'!C231)","v":"0"}]
[null,229,{"$f":"'Śledzenie ocen'!C232&COUNTIF('Śledzenie ocen'!$C$4:C232,'Śledzenie ocen'!C232)","v":"0"}]
[null,230,{"$f":"'Śledzenie ocen'!C233&COUNTIF('Śledzenie ocen'!$C$4:C233,'Śledzenie ocen'!C233)","v":"0"}]
[null,231,{"$f":"'Śledzenie ocen'!C234&COUNTIF('Śledzenie ocen'!$C$4:C234,'Śledzenie ocen'!C234)","v":"0"}]
[null,232,{"$f":"'Śledzenie ocen'!C235&COUNTIF('Śledzenie ocen'!$C$4:C235,'Śledzenie ocen'!C235)","v":"0"}]
[null,233,{"$f":"'Śledzenie ocen'!C236&COUNTIF('Śledzenie ocen'!$C$4:C236,'Śledzenie ocen'!C236)","v":"0"}]
[null,234,{"$f":"'Śledzenie ocen'!C237&COUNTIF('Śledzenie ocen'!$C$4:C237,'Śledzenie ocen'!C237)","v":"0"}]
[null,235,{"$f":"'Śledzenie ocen'!C238&COUNTIF('Śledzenie ocen'!$C$4:C238,'Śledzenie ocen'!C238)","v":"0"}]
[null,236,{"$f":"'Śledzenie ocen'!C239&COUNTIF('Śledzenie ocen'!$C$4:C239,'Śledzenie ocen'!C239)","v":"0"}]
[null,237,{"$f":"'Śledzenie ocen'!C240&COUNTIF('Śledzenie ocen'!$C$4:C240,'Śledzenie ocen'!C240)","v":"0"}]
[null,238,{"$f":"'Śledzenie ocen'!C241&COUNTIF('Śledzenie ocen'!$C$4:C241,'Śledzenie ocen'!C241)","v":"0"}]
[null,239,{"$f":"'Śledzenie ocen'!C242&COUNTIF('Śledzenie ocen'!$C$4:C242,'Śledzenie ocen'!C242)","v":"0"}]
[null,240,{"$f":"'Śledzenie ocen'!C243&COUNTIF('Śledzenie ocen'!$C$4:C243,'Śledzenie ocen'!C243)","v":"0"}]
[null,241,{"$f":"'Śledzenie ocen'!C244&COUNTIF('Śledzenie ocen'!$C$4:C244,'Śledzenie ocen'!C244)","v":"0"}]
[null,242,{"$f":"'Śledzenie ocen'!C245&COUNTIF('Śledzenie ocen'!$C$4:C245,'Śledzenie ocen'!C245)","v":"0"}]
[null,243,{"$f":"'Śledzenie ocen'!C246&COUNTIF('Śledzenie ocen'!$C$4:C246,'Śledzenie ocen'!C246)","v":"0"}]
[null,244,{"$f":"'Śledzenie ocen'!C247&COUNTIF('Śledzenie ocen'!$C$4:C247,'Śledzenie ocen'!C247)","v":"0"}]
[null,245,{"$f":"'Śledzenie ocen'!C248&COUNTIF('Śledzenie ocen'!$C$4:C248,'Śledzenie ocen'!C248)","v":"0"}]
[null,246,{"$f":"'Śledzenie ocen'!C249&COUNTIF('Śledzenie ocen'!$C$4:C249,'Śledzenie ocen'!C249)","v":"0"}]
[null,247,{"$f":"'Śledzenie ocen'!C250&COUNTIF('Śledzenie ocen'!$C$4:C250,'Śledzenie ocen'!C250)","v":"0"}]
[null,248,{"$f":"'Śledzenie ocen'!C251&COUNTIF('Śledzenie ocen'!$C$4:C251,'Śledzenie ocen'!C251)","v":"0"}]
[null,249,{"$f":"'Śledzenie ocen'!C252&COUNTIF('Śledzenie ocen'!$C$4:C252,'Śledzenie ocen'!C252)","v":"0"}]
[null,250,{"$f":"'Śledzenie ocen'!C253&COUNTIF('Śledzenie ocen'!$C$4:C253,'Śledzenie ocen'!C253)","v":"0"}]
[null,251,{"$f":"'Śledzenie ocen'!C254&COUNTIF('Śledzenie ocen'!$C$4:C254,'Śledzenie ocen'!C254)","v":"0"}]
[null,252,{"$f":"'Śledzenie ocen'!C255&COUNTIF('Śledzenie ocen'!$C$4:C255,'Śledzenie ocen'!C255)","v":"0"}]
[null,253,{"$f":"'Śledzenie ocen'!C256&COUNTIF('Śledzenie ocen'!$C$4:C256,'Śledzenie ocen'!C256)","v":"0"}]
[null,254,{"$f":"'Śledzenie ocen'!C257&COUNTIF('Śledzenie ocen'!$C$4:C257,'Śledzenie ocen'!C257)","v":"0"}]
[null,255,{"$f":"'Śledzenie ocen'!C258&COUNTIF('Śledzenie ocen'!$C$4:C258,'Śledzenie ocen'!C258)","v":"0"}]
[null,256,{"$f":"'Śledzenie ocen'!C259&COUNTIF('Śledzenie ocen'!$C$4:C259,'Śledzenie ocen'!C259)","v":"0"}]
[null,257,{"$f":"'Śledzenie ocen'!C260&COUNTIF('Śledzenie ocen'!$C$4:C260,'Śledzenie ocen'!C260)","v":"0"}]
[null,258,{"$f":"'Śledzenie ocen'!C261&COUNTIF('Śledzenie ocen'!$C$4:C261,'Śledzenie ocen'!C261)","v":"0"}]
[null,259,{"$f":"'Śledzenie ocen'!C262&COUNTIF('Śledzenie ocen'!$C$4:C262,'Śledzenie ocen'!C262)","v":"0"}]
[null,260,{"$f":"'Śledzenie ocen'!C263&COUNTIF('Śledzenie ocen'!$C$4:C263,'Śledzenie ocen'!C263)","v":"0"}]
[null,261,{"$f":"'Śledzenie ocen'!C264&COUNTIF('Śledzenie ocen'!$C$4:C264,'Śledzenie ocen'!C264)","v":"0"}]
[null,262,{"$f":"'Śledzenie ocen'!C265&COUNTIF('Śledzenie ocen'!$C$4:C265,'Śledzenie ocen'!C265)","v":"0"}]
[null,263,{"$f":"'Śledzenie ocen'!C266&COUNTIF('Śledzenie ocen'!$C$4:C266,'Śledzenie ocen'!C266)","v":"0"}]
[null,264,{"$f":"'Śledzenie ocen'!C267&COUNTIF('Śledzenie ocen'!$C$4:C267,'Śledzenie ocen'!C267)","v":"0"}]
[null,265,{"$f":"'Śledzenie ocen'!C268&COUNTIF('Śledzenie ocen'!$C$4:C268,'Śledzenie ocen'!C268)","v":"0"}]
[null,266,{"$f":"'Śledzenie ocen'!C269&COUNTIF('Śledzenie ocen'!$C$4:C269,'Śledzenie ocen'!C269)","v":"0"}]
[null,267,{"$f":"'Śledzenie ocen'!C270&COUNTIF('Śledzenie ocen'!$C$4:C270,'Śledzenie ocen'!C270)","v":"0"}]
[null,268,{"$f":"'Śledzenie ocen'!C271&COUNTIF('Śledzenie ocen'!$C$4:C271,'Śledzenie ocen'!C271)","v":"0"}]
[null,269,{"$f":"'Śledzenie ocen'!C272&COUNTIF('Śledzenie ocen'!$C$4:C272,'Śledzenie ocen'!C272)","v":"0"}]
[null,270,{"$f":"'Śledzenie ocen'!C273&COUNTIF('Śledzenie ocen'!$C$4:C273,'Śledzenie ocen'!C273)","v":"0"}]
[null,271,{"$f":"'Śledzenie ocen'!C274&COUNTIF('Śledzenie ocen'!$C$4:C274,'Śledzenie ocen'!C274)","v":"0"}]
[null,272,{"$f":"'Śledzenie ocen'!C275&COUNTIF('Śledzenie ocen'!$C$4:C275,'Śledzenie ocen'!C275)","v":"0"}]
[null,273,{"$f":"'Śledzenie ocen'!C276&COUNTIF('Śledzenie ocen'!$C$4:C276,'Śledzenie ocen'!C276)","v":"0"}]
[null,274,{"$f":"'Śledzenie ocen'!C277&COUNTIF('Śledzenie ocen'!$C$4:C277,'Śledzenie ocen'!C277)","v":"0"}]
[null,275,{"$f":"'Śledzenie ocen'!C278&COUNTIF('Śledzenie ocen'!$C$4:C278,'Śledzenie ocen'!C278)","v":"0"}]
[null,276,{"$f":"'Śledzenie ocen'!C279&COUNTIF('Śledzenie ocen'!$C$4:C279,'Śledzenie ocen'!C279)","v":"0"}]
[null,277,{"$f":"'Śledzenie ocen'!C280&COUNTIF('Śledzenie ocen'!$C$4:C280,'Śledzenie ocen'!C280)","v":"0"}]
[null,278,{"$f":"'Śledzenie ocen'!C281&COUNTIF('Śledzenie ocen'!$C$4:C281,'Śledzenie ocen'!C281)","v":"0"}]
[null,279,{"$f":"'Śledzenie ocen'!C282&COUNTIF('Śledzenie ocen'!$C$4:C282,'Śledzenie ocen'!C282)","v":"0"}]
[null,280,{"$f":"'Śledzenie ocen'!C283&COUNTIF('Śledzenie ocen'!$C$4:C283,'Śledzenie ocen'!C283)","v":"0"}]
[null,281,{"$f":"'Śledzenie ocen'!C284&COUNTIF('Śledzenie ocen'!$C$4:C284,'Śledzenie ocen'!C284)","v":"0"}]
[null,282,{"$f":"'Śledzenie ocen'!C285&COUNTIF('Śledzenie ocen'!$C$4:C285,'Śledzenie ocen'!C285)","v":"0"}]
[null,283,{"$f":"'Śledzenie ocen'!C286&COUNTIF('Śledzenie ocen'!$C$4:C286,'Śledzenie ocen'!C286)","v":"0"}]
[null,284,{"$f":"'Śledzenie ocen'!C287&COUNTIF('Śledzenie ocen'!$C$4:C287,'Śledzenie ocen'!C287)","v":"0"}]
[null,285,{"$f":"'Śledzenie ocen'!C288&COUNTIF('Śledzenie ocen'!$C$4:C288,'Śledzenie ocen'!C288)","v":"0"}]
[null,286,{"$f":"'Śledzenie ocen'!C289&COUNTIF('Śledzenie ocen'!$C$4:C289,'Śledzenie ocen'!C289)","v":"0"}]
[null,287,{"$f":"'Śledzenie ocen'!C290&COUNTIF('Śledzenie ocen'!$C$4:C290,'Śledzenie ocen'!C290)","v":"0"}]
[null,288,{"$f":"'Śledzenie ocen'!C291&COUNTIF('Śledzenie ocen'!$C$4:C291,'Śledzenie ocen'!C291)","v":"0"}]
[null,289,{"$f":"'Śledzenie ocen'!C292&COUNTIF('Śledzenie ocen'!$C$4:C292,'Śledzenie ocen'!C292)","v":"0"}]
[null,290,{"$f":"'Śledzenie ocen'!C293&COUNTIF('Śledzenie ocen'!$C$4:C293,'Śledzenie ocen'!C293)","v":"0"}]
[null,291,{"$f":"'Śledzenie ocen'!C294&COUNTIF('Śledzenie ocen'!$C$4:C294,'Śledzenie ocen'!C294)","v":"0"}]
[null,292,{"$f":"'Śledzenie ocen'!C295&COUNTIF('Śledzenie ocen'!$C$4:C295,'Śledzenie ocen'!C295)","v":"0"}]
[null,293,{"$f":"'Śledzenie ocen'!C296&COUNTIF('Śledzenie ocen'!$C$4:C296,'Śledzenie ocen'!C296)","v":"0"}]
[null,294,{"$f":"'Śledzenie ocen'!C297&COUNTIF('Śledzenie ocen'!$C$4:C297,'Śledzenie ocen'!C297)","v":"0"}]
[null,295,{"$f":"'Śledzenie ocen'!C298&COUNTIF('Śledzenie ocen'!$C$4:C298,'Śledzenie ocen'!C298)","v":"0"}]
[null,296,{"$f":"'Śledzenie ocen'!C299&COUNTIF('Śledzenie ocen'!$C$4:C299,'Śledzenie ocen'!C299)","v":"0"}]
[null,297,{"$f":"'Śledzenie ocen'!C300&COUNTIF('Śledzenie ocen'!$C$4:C300,'Śledzenie ocen'!C300)","v":"0"}]
[null,298,{"$f":"'Śledzenie ocen'!C301&COUNTIF('Śledzenie ocen'!$C$4:C301,'Śledzenie ocen'!C301)","v":"0"}]
[null,299,{"$f":"'Śledzenie ocen'!C302&COUNTIF('Śledzenie ocen'!$C$4:C302,'Śledzenie ocen'!C302)","v":"0"}]
[null,300,{"$f":"'Śledzenie ocen'!C303&COUNTIF('Śledzenie ocen'!$C$4:C303,'Śledzenie ocen'!C303)","v":"0"}]
[null,301,{"$f":"'Śledzenie ocen'!C304&COUNTIF('Śledzenie ocen'!$C$4:C304,'Śledzenie ocen'!C304)","v":"0"}]
[null,302,{"$f":"'Śledzenie ocen'!C305&COUNTIF('Śledzenie ocen'!$C$4:C305,'Śledzenie ocen'!C305)","v":"0"}]
[null,303,{"$f":"'Śledzenie ocen'!C306&COUNTIF('Śledzenie ocen'!$C$4:C306,'Śledzenie ocen'!C306)","v":"0"}]
[null,304,{"$f":"'Śledzenie ocen'!C307&COUNTIF('Śledzenie ocen'!$C$4:C307,'Śledzenie ocen'!C307)","v":"0"}]
[null,305,{"$f":"'Śledzenie ocen'!C308&COUNTIF('Śledzenie ocen'!$C$4:C308,'Śledzenie ocen'!C308)","v":"0"}]
[null,306,{"$f":"'Śledzenie ocen'!C309&COUNTIF('Śledzenie ocen'!$C$4:C309,'Śledzenie ocen'!C309)","v":"0"}]
[null,307,{"$f":"'Śledzenie ocen'!C310&COUNTIF('Śledzenie ocen'!$C$4:C310,'Śledzenie ocen'!C310)","v":"0"}]
[null,308,{"$f":"'Śledzenie ocen'!C311&COUNTIF('Śledzenie ocen'!$C$4:C311,'Śledzenie ocen'!C311)","v":"0"}]
[null,309,{"$f":"'Śledzenie ocen'!C312&COUNTIF('Śledzenie ocen'!$C$4:C312,'Śledzenie ocen'!C312)","v":"0"}]
[null,310,{"$f":"'Śledzenie ocen'!C313&COUNTIF('Śledzenie ocen'!$C$4:C313,'Śledzenie ocen'!C313)","v":"0"}]
[null,311,{"$f":"'Śledzenie ocen'!C314&COUNTIF('Śledzenie ocen'!$C$4:C314,'Śledzenie ocen'!C314)","v":"0"}]
[null,312,{"$f":"'Śledzenie ocen'!C315&COUNTIF('Śledzenie ocen'!$C$4:C315,'Śledzenie ocen'!C315)","v":"0"}]
[null,313,{"$f":"'Śledzenie ocen'!C316&COUNTIF('Śledzenie ocen'!$C$4:C316,'Śledzenie ocen'!C316)","v":"0"}]
[null,314,{"$f":"'Śledzenie ocen'!C317&COUNTIF('Śledzenie ocen'!$C$4:C317,'Śledzenie ocen'!C317)","v":"0"}]
[null,315,{"$f":"'Śledzenie ocen'!C318&COUNTIF('Śledzenie ocen'!$C$4:C318,'Śledzenie ocen'!C318)","v":"0"}]
[null,316,{"$f":"'Śledzenie ocen'!C319&COUNTIF('Śledzenie ocen'!$C$4:C319,'Śledzenie ocen'!C319)","v":"0"}]
[null,317,{"$f":"'Śledzenie ocen'!C320&COUNTIF('Śledzenie ocen'!$C$4:C320,'Śledzenie ocen'!C320)","v":"0"}]
[null,318,{"$f":"'Śledzenie ocen'!C321&COUNTIF('Śledzenie ocen'!$C$4:C321,'Śledzenie ocen'!C321)","v":"0"}]
[null,319,{"$f":"'Śledzenie ocen'!C322&COUNTIF('Śledzenie ocen'!$C$4:C322,'Śledzenie ocen'!C322)","v":"0"}]
[null,320,{"$f":"'Śledzenie ocen'!C323&COUNTIF('Śledzenie ocen'!$C$4:C323,'Śledzenie ocen'!C323)","v":"0"}]
[null,321,{"$f":"'Śledzenie ocen'!C324&COUNTIF('Śledzenie ocen'!$C$4:C324,'Śledzenie ocen'!C324)","v":"0"}]
[null,322,{"$f":"'Śledzenie ocen'!C325&COUNTIF('Śledzenie ocen'!$C$4:C325,'Śledzenie ocen'!C325)","v":"0"}]
[null,323,{"$f":"'Śledzenie ocen'!C326&COUNTIF('Śledzenie ocen'!$C$4:C326,'Śledzenie ocen'!C326)","v":"0"}]
[null,324,{"$f":"'Śledzenie ocen'!C327&COUNTIF('Śledzenie ocen'!$C$4:C327,'Śledzenie ocen'!C327)","v":"0"}]
[null,325,{"$f":"'Śledzenie ocen'!C328&COUNTIF('Śledzenie ocen'!$C$4:C328,'Śledzenie ocen'!C328)","v":"0"}]
[null,326,{"$f":"'Śledzenie ocen'!C329&COUNTIF('Śledzenie ocen'!$C$4:C329,'Śledzenie ocen'!C329)","v":"0"}]
[null,327,{"$f":"'Śledzenie ocen'!C330&COUNTIF('Śledzenie ocen'!$C$4:C330,'Śledzenie ocen'!C330)","v":"0"}]
[null,328,{"$f":"'Śledzenie ocen'!C331&COUNTIF('Śledzenie ocen'!$C$4:C331,'Śledzenie ocen'!C331)","v":"0"}]
[null,329,{"$f":"'Śledzenie ocen'!C332&COUNTIF('Śledzenie ocen'!$C$4:C332,'Śledzenie ocen'!C332)","v":"0"}]
[null,330,{"$f":"'Śledzenie ocen'!C333&COUNTIF('Śledzenie ocen'!$C$4:C333,'Śledzenie ocen'!C333)","v":"0"}]
[null,331,{"$f":"'Śledzenie ocen'!C334&COUNTIF('Śledzenie ocen'!$C$4:C334,'Śledzenie ocen'!C334)","v":"0"}]
[null,332,{"$f":"'Śledzenie ocen'!C335&COUNTIF('Śledzenie ocen'!$C$4:C335,'Śledzenie ocen'!C335)","v":"0"}]
[null,333,{"$f":"'Śledzenie ocen'!C336&COUNTIF('Śledzenie ocen'!$C$4:C336,'Śledzenie ocen'!C336)","v":"0"}]
[null,334,{"$f":"'Śledzenie ocen'!C337&COUNTIF('Śledzenie ocen'!$C$4:C337,'Śledzenie ocen'!C337)","v":"0"}]
[null,335,{"$f":"'Śledzenie ocen'!C338&COUNTIF('Śledzenie ocen'!$C$4:C338,'Śledzenie ocen'!C338)","v":"0"}]
[null,336,{"$f":"'Śledzenie ocen'!C339&COUNTIF('Śledzenie ocen'!$C$4:C339,'Śledzenie ocen'!C339)","v":"0"}]
[null,337,{"$f":"'Śledzenie ocen'!C340&COUNTIF('Śledzenie ocen'!$C$4:C340,'Śledzenie ocen'!C340)","v":"0"}]
[null,338,{"$f":"'Śledzenie ocen'!C341&COUNTIF('Śledzenie ocen'!$C$4:C341,'Śledzenie ocen'!C341)","v":"0"}]
[null,339,{"$f":"'Śledzenie ocen'!C342&COUNTIF('Śledzenie ocen'!$C$4:C342,'Śledzenie ocen'!C342)","v":"0"}]
[null,340,{"$f":"'Śledzenie ocen'!C343&COUNTIF('Śledzenie ocen'!$C$4:C343,'Śledzenie ocen'!C343)","v":"0"}]
[null,341,{"$f":"'Śledzenie ocen'!C344&COUNTIF('Śledzenie ocen'!$C$4:C344,'Śledzenie ocen'!C344)","v":"0"}]
[null,342,{"$f":"'Śledzenie ocen'!C345&COUNTIF('Śledzenie ocen'!$C$4:C345,'Śledzenie ocen'!C345)","v":"0"}]
[null,343,{"$f":"'Śledzenie ocen'!C346&COUNTIF('Śledzenie ocen'!$C$4:C346,'Śledzenie ocen'!C346)","v":"0"}]
[null,344,{"$f":"'Śledzenie ocen'!C347&COUNTIF('Śledzenie ocen'!$C$4:C347,'Śledzenie ocen'!C347)","v":"0"}]
[null,345,{"$f":"'Śledzenie ocen'!C348&COUNTIF('Śledzenie ocen'!$C$4:C348,'Śledzenie ocen'!C348)","v":"0"}]
[null,346,{"$f":"'Śledzenie ocen'!C349&COUNTIF('Śledzenie ocen'!$C$4:C349,'Śledzenie ocen'!C349)","v":"0"}]
[null,347,{"$f":"'Śledzenie ocen'!C350&COUNTIF('Śledzenie ocen'!$C$4:C350,'Śledzenie ocen'!C350)","v":"0"}]
[null,348,{"$f":"'Śledzenie ocen'!C351&COUNTIF('Śledzenie ocen'!$C$4:C351,'Śledzenie ocen'!C351)","v":"0"}]
[null,349,{"$f":"'Śledzenie ocen'!C352&COUNTIF('Śledzenie ocen'!$C$4:C352,'Śledzenie ocen'!C352)","v":"0"}]
[null,350,{"$f":"'Śledzenie ocen'!C353&COUNTIF('Śledzenie ocen'!$C$4:C353,'Śledzenie ocen'!C353)","v":"0"}]
[null,351,{"$f":"'Śledzenie ocen'!C354&COUNTIF('Śledzenie ocen'!$C$4:C354,'Śledzenie ocen'!C354)","v":"0"}]
[null,352,{"$f":"'Śledzenie ocen'!C355&COUNTIF('Śledzenie ocen'!$C$4:C355,'Śledzenie ocen'!C355)","v":"0"}]
[null,353,{"$f":"'Śledzenie ocen'!C356&COUNTIF('Śledzenie ocen'!$C$4:C356,'Śledzenie ocen'!C356)","v":"0"}]
[null,354,{"$f":"'Śledzenie ocen'!C357&COUNTIF('Śledzenie ocen'!$C$4:C357,'Śledzenie ocen'!C357)","v":"0"}]
[null,355,{"$f":"'Śledzenie ocen'!C358&COUNTIF('Śledzenie ocen'!$C$4:C358,'Śledzenie ocen'!C358)","v":"0"}]
[null,356,{"$f":"'Śledzenie ocen'!C359&COUNTIF('Śledzenie ocen'!$C$4:C359,'Śledzenie ocen'!C359)","v":"0"}]
[null,357,{"$f":"'Śledzenie ocen'!C360&COUNTIF('Śledzenie ocen'!$C$4:C360,'Śledzenie ocen'!C360)","v":"0"}]
[null,358,{"$f":"'Śledzenie ocen'!C361&COUNTIF('Śledzenie ocen'!$C$4:C361,'Śledzenie ocen'!C361)","v":"0"}]
[null,359,{"$f":"'Śledzenie ocen'!C362&COUNTIF('Śledzenie ocen'!$C$4:C362,'Śledzenie ocen'!C362)","v":"0"}]
[null,360,{"$f":"'Śledzenie ocen'!C363&COUNTIF('Śledzenie ocen'!$C$4:C363,'Śledzenie ocen'!C363)","v":"0"}]
[null,361,{"$f":"'Śledzenie ocen'!C364&COUNTIF('Śledzenie ocen'!$C$4:C364,'Śledzenie ocen'!C364)","v":"0"}]
[null,362,{"$f":"'Śledzenie ocen'!C365&COUNTIF('Śledzenie ocen'!$C$4:C365,'Śledzenie ocen'!C365)","v":"0"}]
[null,363,{"$f":"'Śledzenie ocen'!C366&COUNTIF('Śledzenie ocen'!$C$4:C366,'Śledzenie ocen'!C366)","v":"0"}]
[null,364,{"$f":"'Śledzenie ocen'!C367&COUNTIF('Śledzenie ocen'!$C$4:C367,'Śledzenie ocen'!C367)","v":"0"}]
[null,365,{"$f":"'Śledzenie ocen'!C368&COUNTIF('Śledzenie ocen'!$C$4:C368,'Śledzenie ocen'!C368)","v":"0"}]
[null,366,{"$f":"'Śledzenie ocen'!C369&COUNTIF('Śledzenie ocen'!$C$4:C369,'Śledzenie ocen'!C369)","v":"0"}]
[null,367,{"$f":"'Śledzenie ocen'!C370&COUNTIF('Śledzenie ocen'!$C$4:C370,'Śledzenie ocen'!C370)","v":"0"}]
[null,368,{"$f":"'Śledzenie ocen'!C371&COUNTIF('Śledzenie ocen'!$C$4:C371,'Śledzenie ocen'!C371)","v":"0"}]
[null,369,{"$f":"'Śledzenie ocen'!C372&COUNTIF('Śledzenie ocen'!$C$4:C372,'Śledzenie ocen'!C372)","v":"0"}]
[null,370,{"$f":"'Śledzenie ocen'!C373&COUNTIF('Śledzenie ocen'!$C$4:C373,'Śledzenie ocen'!C373)","v":"0"}]
[null,371,{"$f":"'Śledzenie ocen'!C374&COUNTIF('Śledzenie ocen'!$C$4:C374,'Śledzenie ocen'!C374)","v":"0"}]
[null,372,{"$f":"'Śledzenie ocen'!C375&COUNTIF('Śledzenie ocen'!$C$4:C375,'Śledzenie ocen'!C375)","v":"0"}]
[null,373,{"$f":"'Śledzenie ocen'!C376&COUNTIF('Śledzenie ocen'!$C$4:C376,'Śledzenie ocen'!C376)","v":"0"}]
[null,374,{"$f":"'Śledzenie ocen'!C377&COUNTIF('Śledzenie ocen'!$C$4:C377,'Śledzenie ocen'!C377)","v":"0"}]
[null,375,{"$f":"'Śledzenie ocen'!C378&COUNTIF('Śledzenie ocen'!$C$4:C378,'Śledzenie ocen'!C378)","v":"0"}]
[null,376,{"$f":"'Śledzenie ocen'!C379&COUNTIF('Śledzenie ocen'!$C$4:C379,'Śledzenie ocen'!C379)","v":"0"}]
[null,377,{"$f":"'Śledzenie ocen'!C380&COUNTIF('Śledzenie ocen'!$C$4:C380,'Śledzenie ocen'!C380)","v":"0"}]
[null,378,{"$f":"'Śledzenie ocen'!C381&COUNTIF('Śledzenie ocen'!$C$4:C381,'Śledzenie ocen'!C381)","v":"0"}]
[null,379,{"$f":"'Śledzenie ocen'!C382&COUNTIF('Śledzenie ocen'!$C$4:C382,'Śledzenie ocen'!C382)","v":"0"}]
[null,380,{"$f":"'Śledzenie ocen'!C383&COUNTIF('Śledzenie ocen'!$C$4:C383,'Śledzenie ocen'!C383)","v":"0"}]
[null,381,{"$f":"'Śledzenie ocen'!C384&COUNTIF('Śledzenie ocen'!$C$4:C384,'Śledzenie ocen'!C384)","v":"0"}]
[null,382,{"$f":"'Śledzenie ocen'!C385&COUNTIF('Śledzenie ocen'!$C$4:C385,'Śledzenie ocen'!C385)","v":"0"}]
[null,383,{"$f":"'Śledzenie ocen'!C386&COUNTIF('Śledzenie ocen'!$C$4:C386,'Śledzenie ocen'!C386)","v":"0"}]
[null,384,{"$f":"'Śledzenie ocen'!C387&COUNTIF('Śledzenie ocen'!$C$4:C387,'Śledzenie ocen'!C387)","v":"0"}]
[null,385,{"$f":"'Śledzenie ocen'!C388&COUNTIF('Śledzenie ocen'!$C$4:C388,'Śledzenie ocen'!C388)","v":"0"}]
[null,386,{"$f":"'Śledzenie ocen'!C389&COUNTIF('Śledzenie ocen'!$C$4:C389,'Śledzenie ocen'!C389)","v":"0"}]
[null,387,{"$f":"'Śledzenie ocen'!C390&COUNTIF('Śledzenie ocen'!$C$4:C390,'Śledzenie ocen'!C390)","v":"0"}]
[null,388,{"$f":"'Śledzenie ocen'!C391&COUNTIF('Śledzenie ocen'!$C$4:C391,'Śledzenie ocen'!C391)","v":"0"}]
[null,389,{"$f":"'Śledzenie ocen'!C392&COUNTIF('Śledzenie ocen'!$C$4:C392,'Śledzenie ocen'!C392)","v":"0"}]
[null,390,{"$f":"'Śledzenie ocen'!C393&COUNTIF('Śledzenie ocen'!$C$4:C393,'Śledzenie ocen'!C393)","v":"0"}]
[null,391,{"$f":"'Śledzenie ocen'!C394&COUNTIF('Śledzenie ocen'!$C$4:C394,'Śledzenie ocen'!C394)","v":"0"}]
[null,392,{"$f":"'Śledzenie ocen'!C395&COUNTIF('Śledzenie ocen'!$C$4:C395,'Śledzenie ocen'!C395)","v":"0"}]
[null,393,{"$f":"'Śledzenie ocen'!C396&COUNTIF('Śledzenie ocen'!$C$4:C396,'Śledzenie ocen'!C396)","v":"0"}]
[null,394,{"$f":"'Śledzenie ocen'!C397&COUNTIF('Śledzenie ocen'!$C$4:C397,'Śledzenie ocen'!C397)","v":"0"}]
[null,395,{"$f":"'Śledzenie ocen'!C398&COUNTIF('Śledzenie ocen'!$C$4:C398,'Śledzenie ocen'!C398)","v":"0"}]
[null,396,{"$f":"'Śledzenie ocen'!C399&COUNTIF('Śledzenie ocen'!$C$4:C399,'Śledzenie ocen'!C399)","v":"0"}]
[null,397,{"$f":"'Śledzenie ocen'!C400&COUNTIF('Śledzenie ocen'!$C$4:C400,'Śledzenie ocen'!C400)","v":"0"}]
[null,398,{"$f":"'Śledzenie ocen'!C401&COUNTIF('Śledzenie ocen'!$C$4:C401,'Śledzenie ocen'!C401)","v":"0"}]
[null,399,{"$f":"'Śledzenie ocen'!C402&COUNTIF('Śledzenie ocen'!$C$4:C402,'Śledzenie ocen'!C402)","v":"0"}]
[null,400,{"$f":"'Śledzenie ocen'!C403&COUNTIF('Śledzenie ocen'!$C$4:C403,'Śledzenie ocen'!C403)","v":"0"}]
[null,401,{"$f":"'Śledzenie ocen'!C404&COUNTIF('Śledzenie ocen'!$C$4:C404,'Śledzenie ocen'!C404)","v":"0"}]
[null,402,{"$f":"'Śledzenie ocen'!C405&COUNTIF('Śledzenie ocen'!$C$4:C405,'Śledzenie ocen'!C405)","v":"0"}]
[null,403,{"$f":"'Śledzenie ocen'!C406&COUNTIF('Śledzenie ocen'!$C$4:C406,'Śledzenie ocen'!C406)","v":"0"}]
[null,404,{"$f":"'Śledzenie ocen'!C407&COUNTIF('Śledzenie ocen'!$C$4:C407,'Śledzenie ocen'!C407)","v":"0"}]
[null,405,{"$f":"'Śledzenie ocen'!C408&COUNTIF('Śledzenie ocen'!$C$4:C408,'Śledzenie ocen'!C408)","v":"0"}]
[null,406,{"$f":"'Śledzenie ocen'!C409&COUNTIF('Śledzenie ocen'!$C$4:C409,'Śledzenie ocen'!C409)","v":"0"}]
[null,407,{"$f":"'Śledzenie ocen'!C410&COUNTIF('Śledzenie ocen'!$C$4:C410,'Śledzenie ocen'!C410)","v":"0"}]
[null,408,{"$f":"'Śledzenie ocen'!C411&COUNTIF('Śledzenie ocen'!$C$4:C411,'Śledzenie ocen'!C411)","v":"0"}]
[null,409,{"$f":"'Śledzenie ocen'!C412&COUNTIF('Śledzenie ocen'!$C$4:C412,'Śledzenie ocen'!C412)","v":"0"}]
[null,410,{"$f":"'Śledzenie ocen'!C413&COUNTIF('Śledzenie ocen'!$C$4:C413,'Śledzenie ocen'!C413)","v":"0"}]
[null,411,{"$f":"'Śledzenie ocen'!C414&COUNTIF('Śledzenie ocen'!$C$4:C414,'Śledzenie ocen'!C414)","v":"0"}]
[null,412,{"$f":"'Śledzenie ocen'!C415&COUNTIF('Śledzenie ocen'!$C$4:C415,'Śledzenie ocen'!C415)","v":"0"}]
[null,413,{"$f":"'Śledzenie ocen'!C416&COUNTIF('Śledzenie ocen'!$C$4:C416,'Śledzenie ocen'!C416)","v":"0"}]
[null,414,{"$f":"'Śledzenie ocen'!C417&COUNTIF('Śledzenie ocen'!$C$4:C417,'Śledzenie ocen'!C417)","v":"0"}]
[null,415,{"$f":"'Śledzenie ocen'!C418&COUNTIF('Śledzenie ocen'!$C$4:C418,'Śledzenie ocen'!C418)","v":"0"}]
[null,416,{"$f":"'Śledzenie ocen'!C419&COUNTIF('Śledzenie ocen'!$C$4:C419,'Śledzenie ocen'!C419)","v":"0"}]
[null,417,{"$f":"'Śledzenie ocen'!C420&COUNTIF('Śledzenie ocen'!$C$4:C420,'Śledzenie ocen'!C420)","v":"0"}]
[null,418,{"$f":"'Śledzenie ocen'!C421&COUNTIF('Śledzenie ocen'!$C$4:C421,'Śledzenie ocen'!C421)","v":"0"}]
[null,419,{"$f":"'Śledzenie ocen'!C422&COUNTIF('Śledzenie ocen'!$C$4:C422,'Śledzenie ocen'!C422)","v":"0"}]
[null,420,{"$f":"'Śledzenie ocen'!C423&COUNTIF('Śledzenie ocen'!$C$4:C423,'Śledzenie ocen'!C423)","v":"0"}]
[null,421,{"$f":"'Śledzenie ocen'!C424&COUNTIF('Śledzenie ocen'!$C$4:C424,'Śledzenie ocen'!C424)","v":"0"}]
[null,422,{"$f":"'Śledzenie ocen'!C425&COUNTIF('Śledzenie ocen'!$C$4:C425,'Śledzenie ocen'!C425)","v":"0"}]
[null,423,{"$f":"'Śledzenie ocen'!C426&COUNTIF('Śledzenie ocen'!$C$4:C426,'Śledzenie ocen'!C426)","v":"0"}]
[null,424,{"$f":"'Śledzenie ocen'!C427&COUNTIF('Śledzenie ocen'!$C$4:C427,'Śledzenie ocen'!C427)","v":"0"}]
[null,425,{"$f":"'Śledzenie ocen'!C428&COUNTIF('Śledzenie ocen'!$C$4:C428,'Śledzenie ocen'!C428)","v":"0"}]
[null,426,{"$f":"'Śledzenie ocen'!C429&COUNTIF('Śledzenie ocen'!$C$4:C429,'Śledzenie ocen'!C429)","v":"0"}]
[null,427,{"$f":"'Śledzenie ocen'!C430&COUNTIF('Śledzenie ocen'!$C$4:C430,'Śledzenie ocen'!C430)","v":"0"}]
[null,428,{"$f":"'Śledzenie ocen'!C431&COUNTIF('Śledzenie ocen'!$C$4:C431,'Śledzenie ocen'!C431)","v":"0"}]
[null,429,{"$f":"'Śledzenie ocen'!C432&COUNTIF('Śledzenie ocen'!$C$4:C432,'Śledzenie ocen'!C432)","v":"0"}]
[null,430,{"$f":"'Śledzenie ocen'!C433&COUNTIF('Śledzenie ocen'!$C$4:C433,'Śledzenie ocen'!C433)","v":"0"}]
[null,431,{"$f":"'Śledzenie ocen'!C434&COUNTIF('Śledzenie ocen'!$C$4:C434,'Śledzenie ocen'!C434)","v":"0"}]
[null,432,{"$f":"'Śledzenie ocen'!C435&COUNTIF('Śledzenie ocen'!$C$4:C435,'Śledzenie ocen'!C435)","v":"0"}]
[null,433,{"$f":"'Śledzenie ocen'!C436&COUNTIF('Śledzenie ocen'!$C$4:C436,'Śledzenie ocen'!C436)","v":"0"}]
[null,434,{"$f":"'Śledzenie ocen'!C437&COUNTIF('Śledzenie ocen'!$C$4:C437,'Śledzenie ocen'!C437)","v":"0"}]
[null,435,{"$f":"'Śledzenie ocen'!C438&COUNTIF('Śledzenie ocen'!$C$4:C438,'Śledzenie ocen'!C438)","v":"0"}]
[null,436,{"$f":"'Śledzenie ocen'!C439&COUNTIF('Śledzenie ocen'!$C$4:C439,'Śledzenie ocen'!C439)","v":"0"}]
[null,437,{"$f":"'Śledzenie ocen'!C440&COUNTIF('Śledzenie ocen'!$C$4:C440,'Śledzenie ocen'!C440)","v":"0"}]
[null,438,{"$f":"'Śledzenie ocen'!C441&COUNTIF('Śledzenie ocen'!$C$4:C441,'Śledzenie ocen'!C441)","v":"0"}]
[null,439,{"$f":"'Śledzenie ocen'!C442&COUNTIF('Śledzenie ocen'!$C$4:C442,'Śledzenie ocen'!C442)","v":"0"}]
[null,440,{"$f":"'Śledzenie ocen'!C443&COUNTIF('Śledzenie ocen'!$C$4:C443,'Śledzenie ocen'!C443)","v":"0"}]
[null,441,{"$f":"'Śledzenie ocen'!C444&COUNTIF('Śledzenie ocen'!$C$4:C444,'Śledzenie ocen'!C444)","v":"0"}]
[null,442,{"$f":"'Śledzenie ocen'!C445&COUNTIF('Śledzenie ocen'!$C$4:C445,'Śledzenie ocen'!C445)","v":"0"}]
[null,443,{"$f":"'Śledzenie ocen'!C446&COUNTIF('Śledzenie ocen'!$C$4:C446,'Śledzenie ocen'!C446)","v":"0"}]
[null,444,{"$f":"'Śledzenie ocen'!C447&COUNTIF('Śledzenie ocen'!$C$4:C447,'Śledzenie ocen'!C447)","v":"0"}]
[null,445,{"$f":"'Śledzenie ocen'!C448&COUNTIF('Śledzenie ocen'!$C$4:C448,'Śledzenie ocen'!C448)","v":"0"}]
[null,446,{"$f":"'Śledzenie ocen'!C449&COUNTIF('Śledzenie ocen'!$C$4:C449,'Śledzenie ocen'!C449)","v":"0"}]
[null,447,{"$f":"'Śledzenie ocen'!C450&COUNTIF('Śledzenie ocen'!$C$4:C450,'Śledzenie ocen'!C450)","v":"0"}]
[null,448,{"$f":"'Śledzenie ocen'!C451&COUNTIF('Śledzenie ocen'!$C$4:C451,'Śledzenie ocen'!C451)","v":"0"}]
[null,449,{"$f":"'Śledzenie ocen'!C452&COUNTIF('Śledzenie ocen'!$C$4:C452,'Śledzenie ocen'!C452)","v":"0"}]
[null,450,{"$f":"'Śledzenie ocen'!C453&COUNTIF('Śledzenie ocen'!$C$4:C453,'Śledzenie ocen'!C453)","v":"0"}]
[null,451,{"$f":"'Śledzenie ocen'!C454&COUNTIF('Śledzenie ocen'!$C$4:C454,'Śledzenie ocen'!C454)","v":"0"}]
[null,452,{"$f":"'Śledzenie ocen'!C455&COUNTIF('Śledzenie ocen'!$C$4:C455,'Śledzenie ocen'!C455)","v":"0"}]
[null,453,{"$f":"'Śledzenie ocen'!C456&COUNTIF('Śledzenie ocen'!$C$4:C456,'Śledzenie ocen'!C456)","v":"0"}]
[null,454,{"$f":"'Śledzenie ocen'!C457&COUNTIF('Śledzenie ocen'!$C$4:C457,'Śledzenie ocen'!C457)","v":"0"}]
[null,455,{"$f":"'Śledzenie ocen'!C458&COUNTIF('Śledzenie ocen'!$C$4:C458,'Śledzenie ocen'!C458)","v":"0"}]
[null,456,{"$f":"'Śledzenie ocen'!C459&COUNTIF('Śledzenie ocen'!$C$4:C459,'Śledzenie ocen'!C459)","v":"0"}]
[null,457,{"$f":"'Śledzenie ocen'!C460&COUNTIF('Śledzenie ocen'!$C$4:C460,'Śledzenie ocen'!C460)","v":"0"}]
[null,458,{"$f":"'Śledzenie ocen'!C461&COUNTIF('Śledzenie ocen'!$C$4:C461,'Śledzenie ocen'!C461)","v":"0"}]
[null,459,{"$f":"'Śledzenie ocen'!C462&COUNTIF('Śledzenie ocen'!$C$4:C462,'Śledzenie ocen'!C462)","v":"0"}]
[null,460,{"$f":"'Śledzenie ocen'!C463&COUNTIF('Śledzenie ocen'!$C$4:C463,'Śledzenie ocen'!C463)","v":"0"}]
[null,461,{"$f":"'Śledzenie ocen'!C464&COUNTIF('Śledzenie ocen'!$C$4:C464,'Śledzenie ocen'!C464)","v":"0"}]
[null,462,{"$f":"'Śledzenie ocen'!C465&COUNTIF('Śledzenie ocen'!$C$4:C465,'Śledzenie ocen'!C465)","v":"0"}]
[null,463,{"$f":"'Śledzenie ocen'!C466&COUNTIF('Śledzenie ocen'!$C$4:C466,'Śledzenie ocen'!C466)","v":"0"}]
[null,464,{"$f":"'Śledzenie ocen'!C467&COUNTIF('Śledzenie ocen'!$C$4:C467,'Śledzenie ocen'!C467)","v":"0"}]
[null,465,{"$f":"'Śledzenie ocen'!C468&COUNTIF('Śledzenie ocen'!$C$4:C468,'Śledzenie ocen'!C468)","v":"0"}]
[null,466,{"$f":"'Śledzenie ocen'!C469&COUNTIF('Śledzenie ocen'!$C$4:C469,'Śledzenie ocen'!C469)","v":"0"}]
[null,467,{"$f":"'Śledzenie ocen'!C470&COUNTIF('Śledzenie ocen'!$C$4:C470,'Śledzenie ocen'!C470)","v":"0"}]
[null,468,{"$f":"'Śledzenie ocen'!C471&COUNTIF('Śledzenie ocen'!$C$4:C471,'Śledzenie ocen'!C471)","v":"0"}]
[null,469,{"$f":"'Śledzenie ocen'!C472&COUNTIF('Śledzenie ocen'!$C$4:C472,'Śledzenie ocen'!C472)","v":"0"}]
[null,470,{"$f":"'Śledzenie ocen'!C473&COUNTIF('Śledzenie ocen'!$C$4:C473,'Śledzenie ocen'!C473)","v":"0"}]
[null,471,{"$f":"'Śledzenie ocen'!C474&COUNTIF('Śledzenie ocen'!$C$4:C474,'Śledzenie ocen'!C474)","v":"0"}]
[null,472,{"$f":"'Śledzenie ocen'!C475&COUNTIF('Śledzenie ocen'!$C$4:C475,'Śledzenie ocen'!C475)","v":"0"}]
[null,473,{"$f":"'Śledzenie ocen'!C476&COUNTIF('Śledzenie ocen'!$C$4:C476,'Śledzenie ocen'!C476)","v":"0"}]
[null,474,{"$f":"'Śledzenie ocen'!C477&COUNTIF('Śledzenie ocen'!$C$4:C477,'Śledzenie ocen'!C477)","v":"0"}]
[null,475,{"$f":"'Śledzenie ocen'!C478&COUNTIF('Śledzenie ocen'!$C$4:C478,'Śledzenie ocen'!C478)","v":"0"}]
[null,476,{"$f":"'Śledzenie ocen'!C479&COUNTIF('Śledzenie ocen'!$C$4:C479,'Śledzenie ocen'!C479)","v":"0"}]
[null,477,{"$f":"'Śledzenie ocen'!C480&COUNTIF('Śledzenie ocen'!$C$4:C480,'Śledzenie ocen'!C480)","v":"0"}]
[null,478,{"$f":"'Śledzenie ocen'!C481&COUNTIF('Śledzenie ocen'!$C$4:C481,'Śledzenie ocen'!C481)","v":"0"}]
[null,479,{"$f":"'Śledzenie ocen'!C482&COUNTIF('Śledzenie ocen'!$C$4:C482,'Śledzenie ocen'!C482)","v":"0"}]
[null,480,{"$f":"'Śledzenie ocen'!C483&COUNTIF('Śledzenie ocen'!$C$4:C483,'Śledzenie ocen'!C483)","v":"0"}]
[null,481,{"$f":"'Śledzenie ocen'!C484&COUNTIF('Śledzenie ocen'!$C$4:C484,'Śledzenie ocen'!C484)","v":"0"}]
[null,482,{"$f":"'Śledzenie ocen'!C485&COUNTIF('Śledzenie ocen'!$C$4:C485,'Śledzenie ocen'!C485)","v":"0"}]
[null,483,{"$f":"'Śledzenie ocen'!C486&COUNTIF('Śledzenie ocen'!$C$4:C486,'Śledzenie ocen'!C486)","v":"0"}]
[null,484,{"$f":"'Śledzenie ocen'!C487&COUNTIF('Śledzenie ocen'!$C$4:C487,'Śledzenie ocen'!C487)","v":"0"}]
[null,485,{"$f":"'Śledzenie ocen'!C488&COUNTIF('Śledzenie ocen'!$C$4:C488,'Śledzenie ocen'!C488)","v":"0"}]
[null,486,{"$f":"'Śledzenie ocen'!C489&COUNTIF('Śledzenie ocen'!$C$4:C489,'Śledzenie ocen'!C489)","v":"0"}]
[null,487,{"$f":"'Śledzenie ocen'!C490&COUNTIF('Śledzenie ocen'!$C$4:C490,'Śledzenie ocen'!C490)","v":"0"}]
[null,488,{"$f":"'Śledzenie ocen'!C491&COUNTIF('Śledzenie ocen'!$C$4:C491,'Śledzenie ocen'!C491)","v":"0"}]
[null,489,{"$f":"'Śledzenie ocen'!C492&COUNTIF('Śledzenie ocen'!$C$4:C492,'Śledzenie ocen'!C492)","v":"0"}]
[null,490,{"$f":"'Śledzenie ocen'!C493&COUNTIF('Śledzenie ocen'!$C$4:C493,'Śledzenie ocen'!C493)","v":"0"}]
[null,491,{"$f":"'Śledzenie ocen'!C494&COUNTIF('Śledzenie ocen'!$C$4:C494,'Śledzenie ocen'!C494)","v":"0"}]
[null,492,{"$f":"'Śledzenie ocen'!C495&COUNTIF('Śledzenie ocen'!$C$4:C495,'Śledzenie ocen'!C495)","v":"0"}]
[null,493,{"$f":"'Śledzenie ocen'!C496&COUNTIF('Śledzenie ocen'!$C$4:C496,'Śledzenie ocen'!C496)","v":"0"}]
[null,494,{"$f":"'Śledzenie ocen'!C497&COUNTIF('Śledzenie ocen'!$C$4:C497,'Śledzenie ocen'!C497)","v":"0"}]
[null,495,{"$f":"'Śledzenie ocen'!C498&COUNTIF('Śledzenie ocen'!$C$4:C498,'Śledzenie ocen'!C498)","v":"0"}]
[null,496,{"$f":"'Śledzenie ocen'!C499&COUNTIF('Śledzenie ocen'!$C$4:C499,'Śledzenie ocen'!C499)","v":"0"}]
[null,497,{"$f":"'Śledzenie ocen'!C500&COUNTIF('Śledzenie ocen'!$C$4:C500,'Śledzenie ocen'!C500)","v":"0"}]
[null,498,{"$f":"'Śledzenie ocen'!C501&COUNTIF('Śledzenie ocen'!$C$4:C501,'Śledzenie ocen'!C501)","v":"0"}]
[null,499,{"$f":"'Śledzenie ocen'!C502&COUNTIF('Śledzenie ocen'!$C$4:C502,'Śledzenie ocen'!C502)","v":"0"}]
[null,500,{"$f":"'Śledzenie ocen'!C503&COUNTIF('Śledzenie ocen'!$C$4:C503,'Śledzenie ocen'!C503)","v":"0"}]
[null,501,{"$f":"'Śledzenie ocen'!C504&COUNTIF('Śledzenie ocen'!$C$4:C504,'Śledzenie ocen'!C504)","v":"0"}]
[null,502,{"$f":"'Śledzenie ocen'!C505&COUNTIF('Śledzenie ocen'!$C$4:C505,'Śledzenie ocen'!C505)","v":"0"}]
[null,503,{"$f":"'Śledzenie ocen'!C506&COUNTIF('Śledzenie ocen'!$C$4:C506,'Śledzenie ocen'!C506)","v":"0"}]
[null,504,{"$f":"'Śledzenie ocen'!C507&COUNTIF('Śledzenie ocen'!$C$4:C507,'Śledzenie ocen'!C507)","v":"0"}]
[null,505,{"$f":"'Śledzenie ocen'!C508&COUNTIF('Śledzenie ocen'!$C$4:C508,'Śledzenie ocen'!C508)","v":"0"}]
[null,506,{"$f":"'Śledzenie ocen'!C509&COUNTIF('Śledzenie ocen'!$C$4:C509,'Śledzenie ocen'!C509)","v":"0"}]
[null,507,{"$f":"'Śledzenie ocen'!C510&COUNTIF('Śledzenie ocen'!$C$4:C510,'Śledzenie ocen'!C510)","v":"0"}]
[null,508,{"$f":"'Śledzenie ocen'!C511&COUNTIF('Śledzenie ocen'!$C$4:C511,'Śledzenie ocen'!C511)","v":"0"}]
[null,509,{"$f":"'Śledzenie ocen'!C512&COUNTIF('Śledzenie ocen'!$C$4:C512,'Śledzenie ocen'!C512)","v":"0"}]
[null,510,{"$f":"'Śledzenie ocen'!C513&COUNTIF('Śledzenie ocen'!$C$4:C513,'Śledzenie ocen'!C513)","v":"0"}]
[null,511,{"$f":"'Śledzenie ocen'!C514&COUNTIF('Śledzenie ocen'!$C$4:C514,'Śledzenie ocen'!C514)","v":"0"}]
[null,512,{"$f":"'Śledzenie ocen'!C515&COUNTIF('Śledzenie ocen'!$C$4:C515,'Śledzenie ocen'!C515)","v":"0"}]
[null,513,{"$f":"'Śledzenie ocen'!C516&COUNTIF('Śledzenie ocen'!$C$4:C516,'Śledzenie ocen'!C516)","v":"0"}]
[null,514,{"$f":"'Śledzenie ocen'!C517&COUNTIF('Śledzenie ocen'!$C$4:C517,'Śledzenie ocen'!C517)","v":"0"}]
[null,515,{"$f":"'Śledzenie ocen'!C518&COUNTIF('Śledzenie ocen'!$C$4:C518,'Śledzenie ocen'!C518)","v":"0"}]
[null,516,{"$f":"'Śledzenie ocen'!C519&COUNTIF('Śledzenie ocen'!$C$4:C519,'Śledzenie ocen'!C519)","v":"0"}]
[null,517,{"$f":"'Śledzenie ocen'!C520&COUNTIF('Śledzenie ocen'!$C$4:C520,'Śledzenie ocen'!C520)","v":"0"}]
[null,518,{"$f":"'Śledzenie ocen'!C521&COUNTIF('Śledzenie ocen'!$C$4:C521,'Śledzenie ocen'!C521)","v":"0"}]
[null,519,{"$f":"'Śledzenie ocen'!C522&COUNTIF('Śledzenie ocen'!$C$4:C522,'Śledzenie ocen'!C522)","v":"0"}]
[null,520,{"$f":"'Śledzenie ocen'!C523&COUNTIF('Śledzenie ocen'!$C$4:C523,'Śledzenie ocen'!C523)","v":"0"}]
[null,521,{"$f":"'Śledzenie ocen'!C524&COUNTIF('Śledzenie ocen'!$C$4:C524,'Śledzenie ocen'!C524)","v":"0"}]
[null,522,{"$f":"'Śledzenie ocen'!C525&COUNTIF('Śledzenie ocen'!$C$4:C525,'Śledzenie ocen'!C525)","v":"0"}]
[null,523,{"$f":"'Śledzenie ocen'!C526&COUNTIF('Śledzenie ocen'!$C$4:C526,'Śledzenie ocen'!C526)","v":"0"}]
[null,524,{"$f":"'Śledzenie ocen'!C527&COUNTIF('Śledzenie ocen'!$C$4:C527,'Śledzenie ocen'!C527)","v":"0"}]
[null,525,{"$f":"'Śledzenie ocen'!C528&COUNTIF('Śledzenie ocen'!$C$4:C528,'Śledzenie ocen'!C528)","v":"0"}]
[null,526,{"$f":"'Śledzenie ocen'!C529&COUNTIF('Śledzenie ocen'!$C$4:C529,'Śledzenie ocen'!C529)","v":"0"}]
[null,527,{"$f":"'Śledzenie ocen'!C530&COUNTIF('Śledzenie ocen'!$C$4:C530,'Śledzenie ocen'!C530)","v":"0"}]
[null,528,{"$f":"'Śledzenie ocen'!C531&COUNTIF('Śledzenie ocen'!$C$4:C531,'Śledzenie ocen'!C531)","v":"0"}]
[null,529,{"$f":"'Śledzenie ocen'!C532&COUNTIF('Śledzenie ocen'!$C$4:C532,'Śledzenie ocen'!C532)","v":"0"}]
[null,530,{"$f":"'Śledzenie ocen'!C533&COUNTIF('Śledzenie ocen'!$C$4:C533,'Śledzenie ocen'!C533)","v":"0"}]
[null,531,{"$f":"'Śledzenie ocen'!C534&COUNTIF('Śledzenie ocen'!$C$4:C534,'Śledzenie ocen'!C534)","v":"0"}]
[null,532,{"$f":"'Śledzenie ocen'!C535&COUNTIF('Śledzenie ocen'!$C$4:C535,'Śledzenie ocen'!C535)","v":"0"}]
[null,533,{"$f":"'Śledzenie ocen'!C536&COUNTIF('Śledzenie ocen'!$C$4:C536,'Śledzenie ocen'!C536)","v":"0"}]
[null,534,{"$f":"'Śledzenie ocen'!C537&COUNTIF('Śledzenie ocen'!$C$4:C537,'Śledzenie ocen'!C537)","v":"0"}]
[null,535,{"$f":"'Śledzenie ocen'!C538&COUNTIF('Śledzenie ocen'!$C$4:C538,'Śledzenie ocen'!C538)","v":"0"}]
[null,536,{"$f":"'Śledzenie ocen'!C539&COUNTIF('Śledzenie ocen'!$C$4:C539,'Śledzenie ocen'!C539)","v":"0"}]
[null,537,{"$f":"'Śledzenie ocen'!C540&COUNTIF('Śledzenie ocen'!$C$4:C540,'Śledzenie ocen'!C540)","v":"0"}]
[null,538,{"$f":"'Śledzenie ocen'!C541&COUNTIF('Śledzenie ocen'!$C$4:C541,'Śledzenie ocen'!C541)","v":"0"}]
[null,539,{"$f":"'Śledzenie ocen'!C542&COUNTIF('Śledzenie ocen'!$C$4:C542,'Śledzenie ocen'!C542)","v":"0"}]
[null,540,{"$f":"'Śledzenie ocen'!C543&COUNTIF('Śledzenie ocen'!$C$4:C543,'Śledzenie ocen'!C543)","v":"0"}]
[null,541,{"$f":"'Śledzenie ocen'!C544&COUNTIF('Śledzenie ocen'!$C$4:C544,'Śledzenie ocen'!C544)","v":"0"}]
[null,542,{"$f":"'Śledzenie ocen'!C545&COUNTIF('Śledzenie ocen'!$C$4:C545,'Śledzenie ocen'!C545)","v":"0"}]
[null,543,{"$f":"'Śledzenie ocen'!C546&COUNTIF('Śledzenie ocen'!$C$4:C546,'Śledzenie ocen'!C546)","v":"0"}]
[null,544,{"$f":"'Śledzenie ocen'!C547&COUNTIF('Śledzenie ocen'!$C$4:C547,'Śledzenie ocen'!C547)","v":"0"}]
[null,545,{"$f":"'Śledzenie ocen'!C548&COUNTIF('Śledzenie ocen'!$C$4:C548,'Śledzenie ocen'!C548)","v":"0"}]
[null,546,{"$f":"'Śledzenie ocen'!C549&COUNTIF('Śledzenie ocen'!$C$4:C549,'Śledzenie ocen'!C549)","v":"0"}]
[null,547,{"$f":"'Śledzenie ocen'!C550&COUNTIF('Śledzenie ocen'!$C$4:C550,'Śledzenie ocen'!C550)","v":"0"}]
[null,548,{"$f":"'Śledzenie ocen'!C551&COUNTIF('Śledzenie ocen'!$C$4:C551,'Śledzenie ocen'!C551)","v":"0"}]
[null,549,{"$f":"'Śledzenie ocen'!C552&COUNTIF('Śledzenie ocen'!$C$4:C552,'Śledzenie ocen'!C552)","v":"0"}]
[null,550,{"$f":"'Śledzenie ocen'!C553&COUNTIF('Śledzenie ocen'!$C$4:C553,'Śledzenie ocen'!C553)","v":"0"}]
[null,551,{"$f":"'Śledzenie ocen'!C554&COUNTIF('Śledzenie ocen'!$C$4:C554,'Śledzenie ocen'!C554)","v":"0"}]
[null,552,{"$f":"'Śledzenie ocen'!C555&COUNTIF('Śledzenie ocen'!$C$4:C555,'Śledzenie ocen'!C555)","v":"0"}]
[null,553,{"$f":"'Śledzenie ocen'!C556&COUNTIF('Śledzenie ocen'!$C$4:C556,'Śledzenie ocen'!C556)","v":"0"}]
[null,554,{"$f":"'Śledzenie ocen'!C557&COUNTIF('Śledzenie ocen'!$C$4:C557,'Śledzenie ocen'!C557)","v":"0"}]
[null,555,{"$f":"'Śledzenie ocen'!C558&COUNTIF('Śledzenie ocen'!$C$4:C558,'Śledzenie ocen'!C558)","v":"0"}]
[null,556,{"$f":"'Śledzenie ocen'!C559&COUNTIF('Śledzenie ocen'!$C$4:C559,'Śledzenie ocen'!C559)","v":"0"}]
[null,557,{"$f":"'Śledzenie ocen'!C560&COUNTIF('Śledzenie ocen'!$C$4:C560,'Śledzenie ocen'!C560)","v":"0"}]
[null,558,{"$f":"'Śledzenie ocen'!C561&COUNTIF('Śledzenie ocen'!$C$4:C561,'Śledzenie ocen'!C561)","v":"0"}]
[null,559,{"$f":"'Śledzenie ocen'!C562&COUNTIF('Śledzenie ocen'!$C$4:C562,'Śledzenie ocen'!C562)","v":"0"}]
[null,560,{"$f":"'Śledzenie ocen'!C563&COUNTIF('Śledzenie ocen'!$C$4:C563,'Śledzenie ocen'!C563)","v":"0"}]
[null,561,{"$f":"'Śledzenie ocen'!C564&COUNTIF('Śledzenie ocen'!$C$4:C564,'Śledzenie ocen'!C564)","v":"0"}]
[null,562,{"$f":"'Śledzenie ocen'!C565&COUNTIF('Śledzenie ocen'!$C$4:C565,'Śledzenie ocen'!C565)","v":"0"}]
[null,563,{"$f":"'Śledzenie ocen'!C566&COUNTIF('Śledzenie ocen'!$C$4:C566,'Śledzenie ocen'!C566)","v":"0"}]
[null,564,{"$f":"'Śledzenie ocen'!C567&COUNTIF('Śledzenie ocen'!$C$4:C567,'Śledzenie ocen'!C567)","v":"0"}]
[null,565,{"$f":"'Śledzenie ocen'!C568&COUNTIF('Śledzenie ocen'!$C$4:C568,'Śledzenie ocen'!C568)","v":"0"}]
[null,566,{"$f":"'Śledzenie ocen'!C569&COUNTIF('Śledzenie ocen'!$C$4:C569,'Śledzenie ocen'!C569)","v":"0"}]
[null,567,{"$f":"'Śledzenie ocen'!C570&COUNTIF('Śledzenie ocen'!$C$4:C570,'Śledzenie ocen'!C570)","v":"0"}]
[null,568,{"$f":"'Śledzenie ocen'!C571&COUNTIF('Śledzenie ocen'!$C$4:C571,'Śledzenie ocen'!C571)","v":"0"}]
[null,569,{"$f":"'Śledzenie ocen'!C572&COUNTIF('Śledzenie ocen'!$C$4:C572,'Śledzenie ocen'!C572)","v":"0"}]
[null,570,{"$f":"'Śledzenie ocen'!C573&COUNTIF('Śledzenie ocen'!$C$4:C573,'Śledzenie ocen'!C573)","v":"0"}]
[null,571,{"$f":"'Śledzenie ocen'!C574&COUNTIF('Śledzenie ocen'!$C$4:C574,'Śledzenie ocen'!C574)","v":"0"}]
[null,572,{"$f":"'Śledzenie ocen'!C575&COUNTIF('Śledzenie ocen'!$C$4:C575,'Śledzenie ocen'!C575)","v":"0"}]
[null,573,{"$f":"'Śledzenie ocen'!C576&COUNTIF('Śledzenie ocen'!$C$4:C576,'Śledzenie ocen'!C576)","v":"0"}]
[null,574,{"$f":"'Śledzenie ocen'!C577&COUNTIF('Śledzenie ocen'!$C$4:C577,'Śledzenie ocen'!C577)","v":"0"}]
[null,575,{"$f":"'Śledzenie ocen'!C578&COUNTIF('Śledzenie ocen'!$C$4:C578,'Śledzenie ocen'!C578)","v":"0"}]
[null,576,{"$f":"'Śledzenie ocen'!C579&COUNTIF('Śledzenie ocen'!$C$4:C579,'Śledzenie ocen'!C579)","v":"0"}]
[null,577,{"$f":"'Śledzenie ocen'!C580&COUNTIF('Śledzenie ocen'!$C$4:C580,'Śledzenie ocen'!C580)","v":"0"}]
[null,578,{"$f":"'Śledzenie ocen'!C581&COUNTIF('Śledzenie ocen'!$C$4:C581,'Śledzenie ocen'!C581)","v":"0"}]
[null,579,{"$f":"'Śledzenie ocen'!C582&COUNTIF('Śledzenie ocen'!$C$4:C582,'Śledzenie ocen'!C582)","v":"0"}]
[null,580,{"$f":"'Śledzenie ocen'!C583&COUNTIF('Śledzenie ocen'!$C$4:C583,'Śledzenie ocen'!C583)","v":"0"}]
[null,581,{"$f":"'Śledzenie ocen'!C584&COUNTIF('Śledzenie ocen'!$C$4:C584,'Śledzenie ocen'!C584)","v":"0"}]
[null,582,{"$f":"'Śledzenie ocen'!C585&COUNTIF('Śledzenie ocen'!$C$4:C585,'Śledzenie ocen'!C585)","v":"0"}]
[null,583,{"$f":"'Śledzenie ocen'!C586&COUNTIF('Śledzenie ocen'!$C$4:C586,'Śledzenie ocen'!C586)","v":"0"}]
[null,584,{"$f":"'Śledzenie ocen'!C587&COUNTIF('Śledzenie ocen'!$C$4:C587,'Śledzenie ocen'!C587)","v":"0"}]
[null,585,{"$f":"'Śledzenie ocen'!C588&COUNTIF('Śledzenie ocen'!$C$4:C588,'Śledzenie ocen'!C588)","v":"0"}]
[null,586,{"$f":"'Śledzenie ocen'!C589&COUNTIF('Śledzenie ocen'!$C$4:C589,'Śledzenie ocen'!C589)","v":"0"}]
[null,587,{"$f":"'Śledzenie ocen'!C590&COUNTIF('Śledzenie ocen'!$C$4:C590,'Śledzenie ocen'!C590)","v":"0"}]
[null,588,{"$f":"'Śledzenie ocen'!C591&COUNTIF('Śledzenie ocen'!$C$4:C591,'Śledzenie ocen'!C591)","v":"0"}]
[null,589,{"$f":"'Śledzenie ocen'!C592&COUNTIF('Śledzenie ocen'!$C$4:C592,'Śledzenie ocen'!C592)","v":"0"}]
[null,590,{"$f":"'Śledzenie ocen'!C593&COUNTIF('Śledzenie ocen'!$C$4:C593,'Śledzenie ocen'!C593)","v":"0"}]
[null,591,{"$f":"'Śledzenie ocen'!C594&COUNTIF('Śledzenie ocen'!$C$4:C594,'Śledzenie ocen'!C594)","v":"0"}]
[null,592,{"$f":"'Śledzenie ocen'!C595&COUNTIF('Śledzenie ocen'!$C$4:C595,'Śledzenie ocen'!C595)","v":"0"}]
[null,593,{"$f":"'Śledzenie ocen'!C596&COUNTIF('Śledzenie ocen'!$C$4:C596,'Śledzenie ocen'!C596)","v":"0"}]
[null,594,{"$f":"'Śledzenie ocen'!C597&COUNTIF('Śledzenie ocen'!$C$4:C597,'Śledzenie ocen'!C597)","v":"0"}]
[null,595,{"$f":"'Śledzenie ocen'!C598&COUNTIF('Śledzenie ocen'!$C$4:C598,'Śledzenie ocen'!C598)","v":"0"}]
[null,596,{"$f":"'Śledzenie ocen'!C599&COUNTIF('Śledzenie ocen'!$C$4:C599,'Śledzenie ocen'!C599)","v":"0"}]
[null,597,{"$f":"'Śledzenie ocen'!C600&COUNTIF('Śledzenie ocen'!$C$4:C600,'Śledzenie ocen'!C600)","v":"0"}]
[null,598,{"$f":"'Śledzenie ocen'!C601&COUNTIF('Śledzenie ocen'!$C$4:C601,'Śledzenie ocen'!C601)","v":"0"}]
[null,599,{"$f":"'Śledzenie ocen'!C602&COUNTIF('Śledzenie ocen'!$C$4:C602,'Śledzenie ocen'!C602)","v":"0"}]
[null,600,{"$f":"'Śledzenie ocen'!C603&COUNTIF('Śledzenie ocen'!$C$4:C603,'Śledzenie ocen'!C603)","v":"0"}]
[null,601,{"$f":"'Śledzenie ocen'!C604&COUNTIF('Śledzenie ocen'!$C$4:C604,'Śledzenie ocen'!C604)","v":"0"}]
[null,602,{"$f":"'Śledzenie ocen'!C605&COUNTIF('Śledzenie ocen'!$C$4:C605,'Śledzenie ocen'!C605)","v":"0"}]
[null,603,{"$f":"'Śledzenie ocen'!C606&COUNTIF('Śledzenie ocen'!$C$4:C606,'Śledzenie ocen'!C606)","v":"0"}]
[null,604,{"$f":"'Śledzenie ocen'!C607&COUNTIF('Śledzenie ocen'!$C$4:C607,'Śledzenie ocen'!C607)","v":"0"}]
[null,605,{"$f":"'Śledzenie ocen'!C608&COUNTIF('Śledzenie ocen'!$C$4:C608,'Śledzenie ocen'!C608)","v":"0"}]
[null,606,{"$f":"'Śledzenie ocen'!C609&COUNTIF('Śledzenie ocen'!$C$4:C609,'Śledzenie ocen'!C609)","v":"0"}]
[null,607,{"$f":"'Śledzenie ocen'!C610&COUNTIF('Śledzenie ocen'!$C$4:C610,'Śledzenie ocen'!C610)","v":"0"}]
[null,608,{"$f":"'Śledzenie ocen'!C611&COUNTIF('Śledzenie ocen'!$C$4:C611,'Śledzenie ocen'!C611)","v":"0"}]
[null,609,{"$f":"'Śledzenie ocen'!C612&COUNTIF('Śledzenie ocen'!$C$4:C612,'Śledzenie ocen'!C612)","v":"0"}]
[null,610,{"$f":"'Śledzenie ocen'!C613&COUNTIF('Śledzenie ocen'!$C$4:C613,'Śledzenie ocen'!C613)","v":"0"}]
[null,611,{"$f":"'Śledzenie ocen'!C614&COUNTIF('Śledzenie ocen'!$C$4:C614,'Śledzenie ocen'!C614)","v":"0"}]
[null,612,{"$f":"'Śledzenie ocen'!C615&COUNTIF('Śledzenie ocen'!$C$4:C615,'Śledzenie ocen'!C615)","v":"0"}]
[null,613,{"$f":"'Śledzenie ocen'!C616&COUNTIF('Śledzenie ocen'!$C$4:C616,'Śledzenie ocen'!C616)","v":"0"}]
[null,614,{"$f":"'Śledzenie ocen'!C617&COUNTIF('Śledzenie ocen'!$C$4:C617,'Śledzenie ocen'!C617)","v":"0"}]
[null,615,{"$f":"'Śledzenie ocen'!C618&COUNTIF('Śledzenie ocen'!$C$4:C618,'Śledzenie ocen'!C618)","v":"0"}]
[null,616,{"$f":"'Śledzenie ocen'!C619&COUNTIF('Śledzenie ocen'!$C$4:C619,'Śledzenie ocen'!C619)","v":"0"}]
[null,617,{"$f":"'Śledzenie ocen'!C620&COUNTIF('Śledzenie ocen'!$C$4:C620,'Śledzenie ocen'!C620)","v":"0"}]
[null,618,{"$f":"'Śledzenie ocen'!C621&COUNTIF('Śledzenie ocen'!$C$4:C621,'Śledzenie ocen'!C621)","v":"0"}]
[null,619,{"$f":"'Śledzenie ocen'!C622&COUNTIF('Śledzenie ocen'!$C$4:C622,'Śledzenie ocen'!C622)","v":"0"}]
[null,620,{"$f":"'Śledzenie ocen'!C623&COUNTIF('Śledzenie ocen'!$C$4:C623,'Śledzenie ocen'!C623)","v":"0"}]
[null,621,{"$f":"'Śledzenie ocen'!C624&COUNTIF('Śledzenie ocen'!$C$4:C624,'Śledzenie ocen'!C624)","v":"0"}]
[null,622,{"$f":"'Śledzenie ocen'!C625&COUNTIF('Śledzenie ocen'!$C$4:C625,'Śledzenie ocen'!C625)","v":"0"}]
[null,623,{"$f":"'Śledzenie ocen'!C626&COUNTIF('Śledzenie ocen'!$C$4:C626,'Śledzenie ocen'!C626)","v":"0"}]
[null,624,{"$f":"'Śledzenie ocen'!C627&COUNTIF('Śledzenie ocen'!$C$4:C627,'Śledzenie ocen'!C627)","v":"0"}]
[null,625,{"$f":"'Śledzenie ocen'!C628&COUNTIF('Śledzenie ocen'!$C$4:C628,'Śledzenie ocen'!C628)","v":"0"}]